Cogmind - Beta 13 @@@ ROGUE MODE // 2024.04.21 @ 17:16:25 Player: MTF Result: Heading to fleet! Performance ------------- Evolutions (9) 4500 Regions Visited (34) 6800 Robots Destroyed (1006) 5030 Value Destroyed (61760) 61760 Prototype IDs (312) 6240 Alien Tech Used (15) 3000 Bonus (95003) 95003 TOTAL SCORE: 182333 Bonus ------- Triggered High Security 1500 High Alert Combat Kills 38906 Follower Combat Kills 2837 Entered Garrisons 800 Used RIF Installer 2000 Network Hubs Disabled 200 Aligned with FarCom 300 Built Enhanced Grunts 300 A7 Reached Mainframe 300 Met R17 at Cetus 500 Found Hidden Lab 3000 Used Core Reset Matrix 3000 Met R17 at Research 2000 Scanned by Researcher 500 Pursued by Intercept 2000 Recovered Sigix Corpse 2000 Destroyed MAIN.C Guards 500 Met MAIN.C 5000 Destroyed MAIN.C Shell 5000 Destroyed MAIN.C 10000 Met Architect 300 Destroyed A8 300 Destroyed Architect 15000 Win 3000 Friendly Fire -4240 Cogmind --------- Core Integrity 771/1600 Matter 300/300 Energy 1198/1240 System Corruption 0% Temperature Cool (11) Movement Treading (151) Location To Fleet Rendezvous Parts ------- > --- POWER (4) -------- Zero-point Reactor Singularity Reactor > --- PROPULSION (6) --- Experimental Biometal Heavy Treads Enhanced Armored Heavy Treads High-density Centrium Heavy Treads > --- UTILITY (13) ----- Desublimator High-capacity Storage Unit Advanced Terrain Scan Processor Advanced Targeting Computer Experimental Targeting Computer Experimental Core Analyzer Quantum Capacitor Advanced Powered Armor Experimental Powered Armor AEGIS Remote Shield Stealth Drone Bay (0/2) > --- WEAPON (3) ------- Gatling Beam Potential Cannon > --- INVENTORY (20) --- Improved Quantum Reactor Experimental Energy Well (600) Experimental Energy Well (600) Experimental Energy Well (600) Advanced Matter Compressor (400) Experimental Matter Compressor (500) Advanced Terrain Scanner Experimental Core Analyzer Experimental Force Field Long-range Tractor Beam High-powered Transdimensional Reconstructor Z-bomb Delivery System Sigix Broadsword Sigix Corpse Peak State ------------ > --- POWER ------------ Zero-point Reactor Singularity Reactor > --- PROPULSION ------- Experimental Biometal Heavy Treads Enhanced Armored Heavy Treads High-density Centrium Heavy Treads > --- UTILITY ---------- Desublimator High-capacity Storage Unit Advanced Terrain Scanner Advanced Terrain Scan Processor Advanced Targeting Computer Experimental Targeting Computer Experimental Core Analyzer Improved Armor Integrity Analyzer Quantum Capacitor Heavy Regenerative Plating AEGIS Remote Shield > --- WEAPON ----------- Gatling Beam Sigix Broadsword > --- INVENTORY -------- Improved Quantum Reactor Experimental Energy Well Experimental Energy Well Experimental Energy Well Advanced Matter Compressor Experimental Matter Compressor Experimental Core Analyzer Advanced Powered Armor Experimental Powered Armor Experimental Force Field Long-range Tractor Beam High-powered Transdimensional Reconstructor High-powered Transdimensional Reconstructor Integrity Redistributor Firepult Potential Cannon Z-bomb Delivery System Sigix Corpse [Rating: 250] Favorites ----------- Power Improved Quantum Reactor Engine Improved Deuterium Engine Power Core Light Nuclear Core Reactor Improved Quantum Reactor Propulsion High-density Centrium Heavy Treads Treads High-density Centrium Heavy Treads Leg Improved Aluminum Leg Wheel Armored Huge Wheel Hover Unit Cooled Gravmag System Utility Heavy Regenerative Plating Device Quantum Capacitor Storage Cargo Storage Unit Processor Advanced Terrain Scan Processor Hackware Relay Coupler [NC] Protection Heavy Regenerative Plating Artifact Phase Armor Weapon Enhanced Nova Cannon Energy Gun Cooled Pulse Rifle Energy Cannon Enhanced Nova Cannon Ballistic Gun Light Assault Rifle Ballistic Cannon Heavy Mass Driver Launcher Z-bomb Delivery System Special Weapon Remote Datajack Impact Weapon Great Maul Slashing Weapon Sigix Broadsword Piercing Weapon Heavy Pick Build | -11 -10 -10 -9 -9 -9 -8 -8 -8 -7 -7 -7 -7 -7 -7 -6 -6 -6 -6 -5 -5 -5 -5 -5 -4 -4 -4 -3 -3 -2 -2 -2 -1 -1 -1 ------- Run | Yrd Mat Min Mat Min Exi Min Mat Sto Fac Was Fac Gar Fac Gar Fac Gar Fac Gar Fac Ext Cet Arc Hub Fac Arm Lab Res Tes Res Qua Sec Acc Com Ac0 Slots Evolved 18 | . . . 2 . . . 2 . 2 . . . . . 2 . . . 2 . . . . 2 . . 2 . 2 . . 2 . . Power 3 | . . . . . . . . . . . . . . . 1 . . . . . . . . . . . 1 . . . . 1 . . Propulsion 4 | . . . . . . . 2 . . . . . . . . . . . . . . . . 2 . . . . . . . . . . Utility 10 | . . . 1 . . . . . 2 . . . . . 1 . . . 2 . . . . . . . 1 . 2 . . 1 . . Weapon 1 | . . . 1 . . . . . . . . . . . . . . . . . . . . . . . . . . . . . . . Parts Attached 1168 | 3 8 4 10 13 . 5 30 35 80 13 17 46 49 20 12 20 41 37 39 25 8 22 8 39 75 17 35 35 69 40 76 61 71 105 Power 67 | . 1 1 1 1 . 2 1 5 2 . . 1 2 2 3 2 4 3 1 2 2 . 1 . 6 . 5 1 3 2 5 1 5 2 Engine 15 | . 1 1 1 . . . . 3 . . . 1 2 2 2 1 1 . . . . . . . . . . . . . . . . . Core 17 | . . . . 1 . 2 1 . . . . . . . 1 1 3 3 1 2 . . . . 1 . 1 . . . . . . . Reactor 35 | . . . . . . . . 2 2 . . . . . . . . . . . 2 . 1 . 5 . 4 1 3 2 5 1 5 2 Propulsion 73 | 2 2 . 1 3 . . 10 8 10 1 1 2 . 1 1 . . 2 . . 1 . 2 1 3 . 1 1 3 6 1 8 2 . Treads 61 | 2 2 . 1 1 . . 4 7 7 1 1 2 . 1 1 . . 2 . . 1 . 2 1 3 . 1 1 3 6 1 8 2 . Leg 8 | . . . . 2 . . 6 . . . . . . . . . . . . . . . . . . . . . . . . . . . Wheel 3 | . . . . . . . . . 3 . . . . . . . . . . . . . . . . . . . . . . . . . Hover 1 | . . . . . . . . 1 . . . . . . . . . . . . . . . . . . . . . . . . . . Flight . | . . . . . . . . . . . . . . . . . . . . . . . . . . . . . . . . . . . Utility 604 | 1 3 1 5 . . . 4 5 20 2 7 20 24 10 3 12 20 19 23 10 . 16 3 24 36 10 24 30 59 23 44 42 38 66 Device 403 | 1 . . 1 . . . . 2 11 2 6 17 17 8 2 9 13 13 18 8 . 13 3 17 26 7 18 25 50 20 25 20 19 32 Storage 22 | . 3 . . . . . . . . . . 1 . . . 1 . . . 1 . . . 3 . . 1 . 1 . 5 . 4 2 Processor 29 | . . . 2 . . . 1 . 3 . . . 1 . . . 1 . 2 . . . . . 1 . 3 1 2 1 1 4 5 1 Hackware 29 | . . . . . . . . . . . . . 5 1 1 . 5 4 1 1 . 1 . 4 1 . . . 5 . . . . . Protection 120 | . . 1 2 . . . 3 3 6 . 1 2 1 1 . 2 1 2 2 . . 2 . . 8 3 2 4 1 1 13 18 10 31 Artifact 1 | . . . . . . . . . . . . . . . . . . . . . . . . . . . . . . 1 . . . . Weapon 424 | . 2 2 3 9 . 3 15 17 48 10 9 23 23 7 5 6 17 13 15 13 5 6 2 14 30 7 5 3 4 9 26 10 26 37 Energy Gun 50 | . . . . . . . . 1 18 2 4 7 9 4 2 . . . . . . . . . . 1 . . . . . . 1 1 Energy Cannon 185 | . . . . . . . . 1 4 6 . 4 4 2 2 3 7 4 10 6 1 4 . 8 21 4 4 2 3 8 21 10 17 29 Ballistic Gun 39 | . 2 1 3 4 . 1 9 9 8 . . . . . 1 . 1 . . . . . . . . . . . . . . . . . Ballistic Cannon 38 | . . . . 2 . 2 1 . 1 1 3 6 1 . . 3 4 3 . . . 2 . 1 2 . . . . . 3 . 3 . Launcher 33 | . . . . 3 . . 1 . 3 1 . 2 3 . . . . . 4 1 2 . 1 1 3 . . 1 . . 1 . 5 1 Special Weapon 39 | . . 1 . . . . . 3 2 . . . 3 1 . . 5 4 1 3 1 . 1 3 3 1 1 . 1 1 . . . 4 Impact Weapon 36 | . . . . . . . 4 3 12 . 2 4 3 . . . . . . 3 1 . . 1 1 1 . . . . 1 . . . Slashing Weapon 2 | . . . . . . . . . . . . . . . . . . . . . . . . . . . . . . . . . . 2 Piercing Weapon 2 | . . . . . . . . . . . . . . . . . . 2 . . . . . . . . . . . . . . . . Special Melee Weapon . | . . . . . . . . . . . . . . . . . . . . . . . . . . . . . . . . . . . Unidentified Prototypes 78 | . . . 1 . . . 1 10 3 1 . 1 . . 3 . 2 . 2 . 1 . . 2 17 9 2 1 6 4 6 . 3 3 Corrupted Parts 13 | . . . . . . . . 2 . . . . . 1 . 1 . . . . 3 . 3 . . . . 2 . 1 . . . . System Corruption 76 | . . . . . . . . 3 . . . . . 5 . 3 . . . . 26 . 18 . . . . 12 . 9 . . . . Parts Lost 29 | . 1 2 1 3 . 3 . . . . . 2 2 2 . 3 . 2 1 . . . . . 4 . . . 2 . . . . 1 Power 4 | . . 1 . . . 1 . . . . . . . . . . . . . . . . . . 2 . . . . . . . . . Propulsion 4 | . 1 . 1 . . . . . . . . . . 1 . . . . . . . . . . 1 . . . . . . . . . Utility 13 | . . 1 . . . . . . . . . 1 1 1 . 2 . 2 1 . . . . . 1 . . . 2 . . . . 1 Weapon 8 | . . . . 3 . 2 . . . . . 1 1 . . 1 . . . . . . . . . . . . . . . . . . Highest Loss Streak 3 | . 1 1 1 2 . 3 . . . . . 2 2 2 . 3 . 1 1 . . . . . 3 . . . 2 . . . . 1 To Critical Strikes . | . . . . . . . . . . . . . . . . . . . . . . . . . . . . . . . . . . . Average Slot Usage (%) 75 | . 99 99 100 99 100 100 90 89 87 75 76 71 74 74 79 77 73 72 72 70 65 59 70 67 72 73 70 70 71 71 63 63 64 70 Engine 2 | . 13 14 11 4 . . . 8 4 . . 3 7 7 12 10 6 2 . . . . . . . . . . . . . . . . Core 1 | . . . . 6 11 11 9 . . . . . . . . 2 6 9 11 11 2 . . . . . 3 4 1 . . . . . Reactor 6 | . . . . . . . . . 2 7 7 3 . . . . . . . . 8 11 11 10 9 10 9 8 10 11 8 11 10 9 Treads 13 | . 27 28 22 9 . . 15 35 25 11 11 15 15 14 13 13 13 12 11 11 11 11 11 15 15 15 14 14 13 13 12 10 11 11 Leg 1 | . . . . 12 22 22 20 . . . . . . . . . . . . . . . . . . . . . . . . . . . Device 11 | . 14 3 . . . . . . 5 22 8 10 8 9 12 19 13 18 13 17 23 22 17 14 16 21 21 17 17 19 12 11 9 13 Storage 5 | . 14 14 11 11 11 11 9 9 7 7 7 7 7 7 6 6 6 6 5 5 5 5 5 5 5 5 4 4 4 4 4 3 3 3 Processor 5 | . . . 10 11 11 11 1 . 8 7 7 7 3 . . . . . 5 1 . . . . . . . 1 2 4 4 3 6 18 Protection 8 | . . 10 10 11 11 11 8 8 6 . 6 7 6 7 6 6 6 6 5 5 5 1 5 5 7 5 1 3 3 1 10 14 14 4 Energy Gun 1 | . 4 . . . . . . . 11 2 16 4 13 11 6 3 . . . . . . . . . . . . . . . . . 1 Energy Cannon 3 | . . . . . . . . . . . . . . 1 1 3 1 4 3 2 . 2 2 3 7 13 12 13 12 12 9 5 3 4 Ballistic Gun 5 | . 22 27 33 23 33 19 22 24 4 . . . . . 4 . . . . . . . . . . . . . . . . . . . Ballistic Cannon 1 | . . . . 9 . 13 4 . 1 . 1 7 . . . 2 5 5 5 5 1 2 5 4 3 . . . . . . . . . Impact Weapon 1 | . . . . . . . . 1 2 7 4 1 4 7 6 6 3 . . 1 4 . . . . 1 1 . . . . . . . Naked Turns . | . . . . . . . . . . . . . . . . . . . . . . . . . . . . . . . . . . . Heaviest Build 327 | 14 90 90 95 97 89 94 111 116 133 126 133 189 187 175 191 194 203 213 221 221 234 244 239 239 243 241 261 259 288 300 301 315 327 201 Greatest Support 270 | 40 40 40 40 40 26 26 80 80 82 28 140 150 150 150 150 150 150 150 135 135 140 140 140 220 240 235 235 215 235 270 270 265 265 255 Greatest Overweight (x) 62 | . 2 2 4 6 3 3 1 1 4 4 4 1 1 1 1 1 1 1 1 1 1 62 1 1 1 1 1 1 1 1 1 1 1 . Average Overweight (x) 1 | . . 2 2 2 3 3 1 1 2 3 1 . 1 1 1 1 1 1 1 1 1 5 1 . . . . 1 1 1 . 1 . . Largest Inventory Capacity 30 | 8 25 25 25 25 25 25 25 25 25 25 25 30 30 30 30 30 30 30 30 30 30 30 30 30 30 30 30 30 30 30 30 30 30 20 Average Capacity 27 | 8 16 25 25 25 25 25 25 25 25 25 25 27 30 30 30 30 30 30 30 30 30 30 30 30 30 30 30 30 30 30 30 30 27 20 Most Carried 30 | 6 10 14 25 25 25 25 25 25 25 25 25 30 30 30 30 30 30 30 30 30 30 30 30 30 30 30 30 30 30 30 30 30 30 20 Average Carried 25 | 6 8 12 20 23 22 22 24 24 24 24 24 26 29 27 29 29 29 28 29 29 29 29 29 28 28 29 29 29 29 29 29 29 26 19 Final Capacity 30 | 8 25 25 25 25 25 25 25 25 25 25 25 30 30 30 30 30 30 30 30 30 30 30 30 30 30 30 30 30 30 30 30 30 20 20 Final Carried 30 | 6 10 13 25 24 25 21 25 25 25 25 25 30 28 30 29 30 29 30 30 30 29 30 30 30 30 30 29 30 28 30 30 30 20 15 Class Distribution -------------------- 15% | Scavenger-Tank 15% | Scavenger-Mutant 8% | Hauler-Tank 7% | Scavenger-Gunner 7% | Mutant 7% | Scavenger-Skirmisher 6% | Generator-Gunner 6% | Bothacker-Mutant 6% | Bothacker-Tank 4% | Hauler-Mutant 3% | Generator-Mutant Dominant Class ---------------- Mutant | -10/Materials Mutant | -10/Mines Tank | -9/Materials Scavenger-Gunner | -9/Mines Scavenger-Gunner | -9/Exiles Scavenger-Skirmisher | -8/Mines Scavenger-Skirmisher | -8/Materials Scavenger-Skirmisher | -8/Storage Scavenger-Tank | -7/Factory Scavenger-Mutant | -7/Waste Scavenger-Mutant | -7/Factory Scavenger-Tank | -7/Garrison Bothacker-Mutant | -7/Factory Hauler-Mutant | -7/Garrison Bothacker-Mutant | -6/Factory Bothacker-Mutant | -6/Garrison Bothacker-Mutant | -6/Factory Bothacker-Tank | -6/Garrison Bothacker-Tank | -5/Factory Bothacker-Tank | -5/Extension Hauler-Mutant | -5/Cetus Hauler-Mutant | -5/Archives Hauler-Tank | -5/Hub_04(d) Hauler-Tank | -4/Factory Scavenger-Tank | -4/Armory Hauler-Tank | -4/Lab Hauler-Gunner | -3/Research Hauler-Tank | -3/Testing Hauler-Tank | -2/Research Hauler-Tank | -2/Quarantine Scavenger-Skirmisher | -2/Section 7 Scavenger-Tank | -1/Access Scavenger-Mutant | -1/Command Generator-Gunner | -1/Access_0 Resources | -11 -10 -10 -9 -9 -9 -8 -8 -8 -7 -7 -7 -7 -7 -7 -6 -6 -6 -6 -5 -5 -5 -5 -5 -4 -4 -4 -3 -3 -2 -2 -2 -1 -1 -1 ----------- Run | Yrd Mat Min Mat Min Exi Min Mat Sto Fac Was Fac Gar Fac Gar Fac Gar Fac Gar Fac Ext Cet Arc Hub Fac Arm Lab Res Tes Res Qua Sec Acc Com Ac0 Matter Collected 25308 | 245 539 186 282 329 . 74 541 1129 1575 200 266 993 642 305 176 479 947 977 525 672 180 303 129 1047 1435 85 676 976 1301 1418 1494 445 2982 1755 Remotely 8056 | . . . . . . . . . 449 . 142 624 561 . . . 232 525 445 204 . 110 107 519 704 . 115 422 651 150 844 170 951 131 Salvage Created 73513 | 77 598 207 573 715 . 40 874 818 1675 1474 560 1334 1590 612 197 821 741 759 1420 1319 374 333 247 1186 2756 305 539 1205 2270 1536 13950 12859 16282 3267 Parts 1894 | 3 37 18 28 55 . 2 64 56 77 9 42 55 58 21 1 43 37 30 60 49 13 25 20 51 103 14 19 64 110 55 235 153 202 85 Haulers Intercepted 12 | . 2 . 2 . . . 4 2 2 . . . . . . . . . . . . . . . . . . . . . . . . . Recyclers Shooed 20 | . 1 . 1 3 . . 2 1 1 . . . 2 . 1 . 1 . . 1 . . 1 . . . . 2 2 . . 1 . . Parts Field Recycled 14 | . . . . . . . . . . . . . . . . . . . . . . . . . 14 . . . . . . . . . Retrieved Matter 408 | . . . . . . . . . . . . . . . . . . . . . . . . . 408 . . . . . . . . . Parts Self-Destructed . | . . . . . . . . . . . . . . . . . . . . . . . . . . . . . . . . . . . Prevented . | . . . . . . . . . . . . . . . . . . . . . . . . . . . . . . . . . . . Kills | -11 -10 -10 -9 -9 -9 -8 -8 -8 -7 -7 -7 -7 -7 -7 -6 -6 -6 -6 -5 -5 -5 -5 -5 -4 -4 -4 -3 -3 -2 -2 -2 -1 -1 -1 ------- Run | Yrd Mat Min Mat Min Exi Min Mat Sto Fac Was Fac Gar Fac Gar Fac Gar Fac Gar Fac Ext Cet Arc Hub Fac Arm Lab Res Tes Res Qua Sec Acc Com Ac0 Combat Hostiles Destroyed 927 | . 15 10 7 21 . 1 14 12 31 6 16 26 31 11 . 18 10 11 16 18 4 . 1 13 48 4 7 16 26 14 164 135 184 37 Melee 5 | . . . . . . . . . . . 1 . 1 . . . 1 . . . . . . . 1 . . . . . . . 1 . Guns 115 | . 15 10 7 10 . 1 8 12 19 . 12 2 11 4 . 4 . . . . . . . . . . . . . . . . . . Cannons 169 | . . . . 1 . . 6 . 5 . 3 19 1 3 . 7 7 8 3 11 . . 1 4 32 3 4 9 17 2 14 1 8 . AOE 108 | . . . . 10 . . . . 5 . . 5 12 1 . 2 2 . 5 1 . . . 1 2 . . 3 1 . 19 11 25 3 Classes Destroyed 29 | 2 7 . 2 . . . . 1 4 2 1 . 2 . . . . 2 . . . . . . 1 . . . . 1 4 . . . Worker 26 | . 1 . 1 . . . 1 . . . . . . . . . . . 4 . . . 4 1 . . . . . . 2 4 8 . Builder 37 | . 1 . . 1 . . 2 1 1 . 2 . 7 . 2 . 2 . 1 . . . 2 1 . . . 3 2 . 1 8 . . Tunneler 4 | 1 2 . . . . . . . . . . . . . . . . . . 1 . . . . . . . . . . . . . . Hauler 12 | . 2 . 2 . . . 4 2 2 . . . . . . . . . . . . . . . . . . . . . . . . . Recycler 25 | 1 . . 2 2 . . 2 1 2 . . . . . 1 . 2 . 2 . . . 1 . . . . 1 2 . 2 2 2 . Carrier 20 | . . . . . . . . . . . . . . . . . . . . . . . . . . . . . . . 2 10 8 . Mechanic 33 | . . . . . . . . 1 . . . . 3 . . . . . 2 . . . . . . . . . . . 7 13 7 . Operator 15 | . 1 . . . . . 1 1 . . . . . . . . . . . . . 9 1 . . . . . . 1 . . 1 . Watcher 18 | . 1 . 1 . . . 2 . 1 . . . 1 . . . . . 1 1 2 . . 1 . . . . 1 1 2 . 3 . Swarmer 85 | . 8 8 . 8 . . 8 4 5 . 8 7 1 2 . 3 3 . . . . . . . 8 . . 5 3 . 4 . . . Cutter 9 | . . . . . . . . . 2 . . . . . . 4 . . . . . . . . . . . . . . . . 3 . Saboteur 33 | . . . . . . . . . . . . . . . . . . . . . . . . . 1 . . . . . 12 7 13 . Grunt 310 | . 7 2 5 10 . . 1 2 11 . 4 16 13 7 . 7 3 7 7 8 . . 1 6 10 3 . . 6 . 65 46 63 . Brawler 40 | . . . . . . . . . 1 . . 1 1 1 . . . . . . . . . . 1 . 1 . 1 . 14 6 13 . Duelist 59 | . . . 1 3 . 1 . . 1 . . 1 3 . . 3 . 1 1 1 . . . . 2 . . . 1 . 17 15 8 . Protector 31 | . . . . . . . . . . . . . 1 . . . . . . . . . . . . . . . . . 6 9 15 . Researcher 4 | . . . . . . . . . . . . . . . . . . . . . . . . . . . . . . . 4 . . . Sentry 48 | . . . 1 . . . 5 6 6 . 2 1 1 1 . 1 4 . 3 4 . . . 4 4 . . . 1 . 1 . 3 . Demolisher 1 | . . . . . . . . . . . . . . . . . . . . . . . . . . . 1 . . . . . . . Specialist 10 | . . . . . . . . . . . . . 2 . . . . . . . . . . . 6 . . . . . . . 2 . Hunter 50 | . . . . . . . . . . . 1 . 3 1 . . . . 4 2 . . . 3 4 . 2 4 2 2 10 5 7 . Programmer 104 | . . . . . . . . . 4 . 1 . 6 . . . 1 . 1 1 . . . . 11 . . 6 10 . 16 21 26 . Heavy 4 | . . . . . . . . . 1 . . . . . . . . . . . . . . . 2 . . . . . . . 1 . Q-Series 3 | . . . . . . . . . . . . . . . . . . . . . . . . . . . . . . . 1 2 . . Behemoth 6 | . . . . . . . . . . . . . . . . . . 2 . 2 . . . . . . . . . . 1 . 1 . Compactor 6 | . . . . . . . . . . 6 . . . . . . . . . . . . . . . . . . . . . . . . Cetus Guard 4 | . . . . . . . . . . . . . . . . . . . . . 4 . . . . . . . . . . . . . Quarantine Guard 7 | . . . . . . . . . . . . . . . . . . . . . . . . . . . . . . 7 . . . . S7 Guard 2 | . . . . . . . . . . . . . . . . . . . . . . . . . . . . . . . 2 . . . M Guard 2 | . . . . . . . . . . . . . . . . . . . . . . . . . . . . . . . . . 2 . Enhanced Grunt 26 | . . . . . . . . . . . . . . . . . . . . . . . . . . . . . . . . . . 26 Enhanced Sentry 1 | . . . . . . . . . . . . . . . . . . . . . . . . . . . . . . . . . . 1 Enhanced Hunter 8 | . . . . . . . . . . . . . . . . . . . . . . . . . . . . . . . . . . 8 Tracker 6 | . . . . . . . . . . . . . . . . . . . . . . . . . . . 1 . 1 2 2 . . . Combat Programmer 8 | . . . . . . . . . . . . . . . . . . . . . . . . . . . 1 . 1 2 2 . 2 . Investigator 4 | . . . . . . . . . . . . . . . . . . . . . . . . . . . . . . . 1 2 1 . Striker 25 | . . . . . . . . . . . . . . . . . . 1 . . . . . . . . 1 . . . 3 9 11 . Executioner 35 | . . . . . . . . . . . . . . . . . . . . . . . . . . . . . . . 8 15 12 . Fortress 1 | . . . . . . . . . . . . . . . . . . . . . . . . . . . . . . 1 . . . . Protovariant G 1 | . . . . . . . . . . . . . . . . . . . . . . . . . . . . 1 . . . . . . Martyr 2 | . . . . . . . . . . 2 . . . . . . . . . . . . . . . . . . . . . . . . Best Kill Streak 43 | 2 3 3 3 4 . 1 5 9 4 2 5 15 15 3 1 4 3 3 10 5 3 3 5 9 9 3 3 5 4 4 34 21 43 6 Combat Bots Only 41 | . 3 3 3 4 . 1 5 4 4 2 4 15 8 3 . 4 3 3 4 5 2 . 1 7 9 3 3 5 4 4 32 18 41 6 Max Kills in Single Turn 10 | 1 2 1 1 3 . 1 2 2 3 2 2 2 4 1 1 2 2 1 7 2 1 1 2 1 2 1 1 2 2 1 6 10 8 2 Gunslinging 1 | . 1 . . 1 . . . 1 . . 1 . 1 . . . . . . . . . . . . . . . . . . . . . Exploded 3 | . . . . 3 . . . . 2 . . 2 3 1 . 2 2 . 3 1 . . . 1 1 . . 2 1 . 2 1 2 1 Melee 1 | . . . . . . . . . . . 1 . 1 . . . 1 . . . . . . . 1 . . . . . . . 1 . Uniques/NPCs Destroyed 8 | . . . . . . . . 1 . . . . . . . . . . . . . . . . . 1 . . . . . . 2 4 01-MTF (-8/Storage) A5 (-4/Lab) MAIN.C Shell (-1/Command) MAIN.C (-1/Command) A8 (-1/Access_0) A6 (-1/Access_0) A4 (-1/Access_0) Architect (-1/Access_0) Combat | -11 -10 -10 -9 -9 -9 -8 -8 -8 -7 -7 -7 -7 -7 -7 -6 -6 -6 -6 -5 -5 -5 -5 -5 -4 -4 -4 -3 -3 -2 -2 -2 -1 -1 -1 -------- Run | Yrd Mat Min Mat Min Exi Min Mat Sto Fac Was Fac Gar Fac Gar Fac Gar Fac Gar Fac Ext Cet Arc Hub Fac Arm Lab Res Tes Res Qua Sec Acc Com Ac0 Hostile Shots Fired 3568 | . 71 57 19 41 . 9 43 31 291 . 107 197 118 73 . 73 124 67 85 48 9 . . 120 400 42 31 134 134 70 268 72 284 550 Missed 978 | . 21 18 6 12 . . 9 8 116 . 39 60 33 10 . 16 43 15 14 9 4 . . 28 84 7 7 36 27 14 47 24 97 174 Damage Taken 37718 | . 489 348 269 541 . 289 423 352 2311 . 849 1344 1543 821 . 990 548 977 1112 677 148 . 76 1460 5050 817 379 1293 1232 768 2650 628 3090 6244 Core 2083 | . 67 24 39 36 . 24 5 58 94 . 31 93 98 93 . 61 24 80 69 37 . . . 39 130 28 42 41 56 21 91 17 34 651 Absorbed by Shields 18498 | . . . . . . . . . . . 48 459 . . . 132 321 200 180 220 53 . 28 544 503 . 280 938 1291 792 2733 650 3060 6066 Reduced by Siege Mode 1769 | . . . . . . . . . . . 7 116 94 50 . 74 12 34 74 14 . . . 123 424 123 27 29 44 57 90 55 190 132 Redirected to Shielding 508 | . . 5 9 8 . 3 1 . . . . . . . . . . . . . . . . . . . . . . . 113 16 44 309 Ignored by Resistances 736 | . . . . . . . . . . . . 135 30 . . . . . . . . . . . . . . . . . 61 72 379 59 Regen/Repaired (Parts) 11175 | . 185 . . . . . 80 46 . 22 91 . . . 62 . 195 . 43 390 . . . . 800 80 . . . . 3841 273 1422 3645 Core Remaining (%) 75 | 100 . 63 . . . 75 . 88 . . . . . 41 . . . 80 . . . . 89 . . 100 . 93 . . 53 . . 48 Volleys Fired 2793 | 5 75 29 26 36 . 8 56 40 105 7 29 114 63 37 8 43 57 56 58 79 17 66 26 60 139 17 56 85 153 84 321 228 375 235 Largest 3 | 2 2 2 3 3 . 3 3 3 3 1 3 2 3 2 1 2 2 2 2 2 1 1 2 2 3 3 1 1 2 1 3 3 3 2 Hottest 370 | 60 60 100 63 94 . 94 94 71 180 250 180 120 250 120 60 129 160 250 160 160 81 113 150 150 370 280 120 120 240 250 360 280 275 370 Shots Fired 3684 | 10 149 49 78 96 . 24 168 114 198 7 71 146 94 52 7 76 63 75 65 91 18 64 28 62 226 39 57 83 150 85 327 240 436 236 Gun 1045 | 10 149 40 78 88 . 19 134 113 151 . 54 68 57 28 7 35 . . . . . . . . . . . . . . . . 9 5 Cannon 2434 | . . . . 2 . 5 34 . 39 7 17 71 14 21 . 41 40 61 57 67 11 64 25 48 210 39 56 80 149 83 323 240 411 219 Launcher 82 | . . . . 6 . . . . 5 . . 7 7 . . . . . 7 3 7 . . 6 3 . . 3 . . 4 . 16 8 Special 123 | . . 9 . . . . . 1 3 . . . 16 3 . . 23 14 1 21 . . 3 8 13 . 1 . 1 2 . . . 4 Kinetic 1054 | 5 114 40 78 90 . 24 168 113 103 . 17 56 2 . . 6 23 23 12 18 . 1 24 5 42 . . . . . . . 90 . Thermal 1926 | 5 35 9 . . . . . 1 77 7 54 68 64 28 2 . 14 31 30 12 . 63 . 8 150 39 32 50 99 46 245 221 312 224 Explosive 42 | . . . . 6 . . . . 5 . . 7 7 . . . . . . . . . . . . . . . . . . . 9 8 Electromagnetic 549 | . . . . . . . . . 10 . . 15 5 21 5 70 3 7 22 40 18 . 1 41 21 . 24 33 50 37 82 19 25 . Robot Hit Streak 37 | 5 20 8 11 24 . 10 14 21 19 15 20 15 14 18 11 17 9 27 11 12 4 7 8 11 18 22 8 10 8 17 31 35 37 25 Robot Miss Streak 5 | 1 2 3 3 4 . 2 4 3 5 1 3 3 3 1 . 2 3 3 1 3 5 4 2 2 5 1 3 2 4 2 5 2 5 4 Penetration Max 1 | . . . . . . . . . . . . . . . . . 1 . 1 . . . 1 . . . . . . . . . . . Secondary Targets 19 | . 4 4 . 2 . . . 1 3 . 2 1 2 . . . . . . . . . . . . . . . . . . . . . Max Gunslinging Chain 1 | . 1 1 . 1 . . . 1 1 . 1 1 1 . . . . . . . . . . . . . . . . . . . . . Capacitor 1458 | . . . . . . . . . . . . . . . . . . . . . . . . . . . 56 80 149 83 318 222 328 222 Shots Hit Robots 2262 | 7 105 26 52 69 . 16 102 72 136 10 43 108 64 43 6 50 46 52 29 70 6 38 8 40 140 27 29 49 75 51 215 97 285 96 Core Hits 2158 | 3 30 13 22 43 . 5 43 36 53 8 24 65 78 14 1 23 12 17 23 27 10 17 14 21 64 8 9 24 40 15 415 296 499 186 Critical Kills 13 | . . . . 2 . . . . 1 . . . . . . . 1 . . . . . . . 2 1 . 1 2 . 3 . . . Critical Parts Destroyed 5 | . . . . . . . . 1 . 1 . . . . 1 . 2 . . . . . . . . . . . . . . . . . Critical Strikes 56 | . . . . 2 . . 2 1 3 1 3 7 1 1 1 2 4 2 3 1 . . 2 . 7 1 1 1 3 . 6 . 1 . Burn 11 | . . . . . . . . . . . 3 6 1 1 . . . . . . . . . . . . . . . . . . . . Meltdown 9 | . . . . . . . . . . . . . . . . . . . . . . . . . 2 1 . 1 2 . 3 . . . Destroy 5 | . . . . 2 . . 1 1 1 . . . . . . . . . . . . . . . . . . . . . . . . . Blast 19 | . . . . . . . 1 . 2 . . 1 . . . 1 1 2 2 1 . . 2 . 5 . . . . . . . 1 . Corrupt 7 | . . . . . . . . . . . . . . . . 1 . . 1 . . . . . . . 1 . 1 . 3 . . . Smash 5 | . . . . . . . . . . 1 . . . . 1 . 3 . . . . . . . . . . . . . . . . . Melee Attacks 205 | . . . . . . . 8 8 62 3 6 10 13 12 11 14 18 5 2 20 . . . 1 . 1 1 . . . 10 . . . Kinetic 10 | . . . . . . . . . . . . . . . . . . . . . . . . . . . . . . . 10 . . . Impact 188 | . . . . . . . 8 8 62 3 6 10 13 12 11 14 18 . . 20 . . . 1 . 1 1 . . . . . . . Slashing . | . . . . . . . . . . . . . . . . . . . . . . . . . . . . . . . . . . . Piercing 7 | . . . . . . . . . . . . . . . . . . 5 2 . . . . . . . . . . . . . . . Sneak Attacks 15 | . . . . . . . . 1 2 3 . . 1 . 2 . 5 . . . . . . . . . . . . . 1 . . . Combat Hostiles 2 | . . . . . . . . . . . . . 1 . . . 1 . . . . . . . . . . . . . . . . . Follow-up Attacks . | . . . . . . . . . . . . . . . . . . . . . . . . . . . . . . . . . . . Damage Inflicted 134509 | 77 1368 396 653 1381 . 162 1606 1297 4299 996 1295 4214 3992 1168 303 1795 2072 2048 3555 2724 1097 1510 1270 1725 7221 1244 1165 2852 3721 1995 17785 11818 28072 17633 Guns 12526 | 77 1345 360 645 691 . 129 1121 1163 2404 . 657 1278 1181 615 108 551 . . . . . . . . . . . . . . . . 86 115 Cannons 59495 | . . . . 43 . 22 417 . 1417 239 601 1811 309 553 . 959 1450 1578 1126 2151 181 1510 637 1058 6314 1244 1165 2257 3498 1979 5896 1967 11479 7634 Explosions 60068 | . . . . 614 . . . 33 355 535 . 1125 2391 . . 285 72 136 2429 497 916 . 611 652 876 . . 578 202 16 11528 9851 16482 9884 Melee 2013 | . . . . . . . . 92 123 222 33 . 70 . 193 . 539 329 . 72 . . . . . . . . . . 340 . . . Ramming 407 | . 23 36 8 33 . 11 68 9 . . 4 . 41 . 2 . 11 5 . 4 . . 22 15 31 . . 17 21 . 21 . 25 . Kinetic 20703 | 25 1048 360 645 734 . 151 1538 1163 1943 . 601 1656 31 . . 243 1251 1006 542 928 . . 637 . 1805 . . . . . 340 . 4056 . Thermal 89106 | 52 297 . . . . . . . 1744 774 657 1278 2660 615 . 285 212 593 1512 309 . 1510 . . 4163 1244 469 1394 2097 929 14732 11780 23358 16442 Explosive 5217 | . . . . 614 . . . 33 253 . . 1125 1099 . . . . . . . . . . . . . . 343 139 . . . 420 1191 Electromagnetic 17403 | . . . . . . . . . 236 . . 155 91 553 108 1267 59 115 1501 1411 1097 . 611 1710 1222 . 696 1098 1464 1066 2692 38 213 . Impact 1344 | . . . . . . . . 92 123 222 33 . 70 . 193 . 539 . . 72 . . . . . . . . . . . . . . Slashing . | . . . . . . . . . . . . . . . . . . . . . . . . . . . . . . . . . . . Piercing 329 | . . . . . . . . . . . . . . . . . . 329 . . . . . . . . . . . . . . . . Highest Corruption 27 | . . . . . . . . 4 2 2 5 4 6 11 8 11 11 13 . 1 27 27 21 . 12 19 5 18 26 10 10 . . . Average Corruption 6 | . . . . . . . . 1 1 2 2 2 3 6 7 8 8 12 . 1 17 7 2 . 7 18 5 5 15 9 10 . . . Corruption Purged 38 | . . . . . . . . . . . 5 3 . . . 5 . . . . . 25 . . . . . . . . . . . . Corruption Blocked . | . . . . . . . . . . . . . . . . . . . . . . . . . . . . . . . . . . . Effects 726 | . . . . . . . . 5 19 31 16 21 28 33 11 45 44 60 . 14 18 38 4 . 46 20 15 27 57 21 153 . . . Message Errors 185 | . . . . . . . . 2 7 9 1 5 6 7 2 15 12 16 . 1 4 12 1 . 10 6 3 7 15 8 36 . . . Matter Fused 156 | . . . . . . . . 1 2 8 2 4 10 8 4 4 8 14 . 7 2 9 2 . 10 3 4 6 12 4 32 . . . Heat Flow Errors 76 | . . . . . . . . 1 3 5 4 2 4 2 2 5 7 6 . . 1 4 . . 5 2 1 2 6 1 13 . . . Energy Discharges 93 | . . . . . . . . 1 4 2 2 2 3 8 1 7 3 4 . 1 5 4 . . 9 1 2 4 5 4 21 . . . Parts Rejected 7 | . . . . . . . . . 1 . . 1 1 . . 1 1 . . . . . . . 1 1 . . . . . . . . Parts Fused 13 | . . . . . . . . . . 2 . . . 1 . . 1 2 . . . 1 . . . 1 . 1 3 . 1 . . . Data Loss (minor) 87 | . . . . . . . . . 2 4 4 2 2 4 . 7 3 7 . 5 5 2 . . 3 3 . 3 5 2 24 . . . Data Loss (major) 28 | . . . . . . . . . . . 2 3 . 1 . 1 3 4 . . . 2 . . 2 1 1 2 1 . 5 . . . Misfires 32 | . . . . . . . . . . . 1 1 1 2 . 4 3 3 . . 1 1 1 . . . 2 . 1 1 10 . . . Alerts 15 | . . . . . . . . . . 1 . . 1 . 1 . 2 . . . . . . . 1 . 1 . 4 1 3 . . . Misdirections 2 | . . . . . . . . . . . . . . . . . . . . . . . . . 1 . . . . . 1 . . . Weapon Failures 32 | . . . . . . . . . . . . 1 . . 1 1 1 4 . . . 3 . . 4 2 1 2 5 . 7 . . . Overload Shots 107 | . . . . . . . . . 40 . 6 2 31 15 2 . . . . . . . . . 2 1 3 . 2 1 1 1 . . Effects 6 | . . . . . . . . . 2 . . . 1 2 . . . . . . . . . . . . . . . . 1 . . . Energy Bleed 2 | . . . . . . . . . 1 . . . . . . . . . . . . . . . . . . . . . 1 . . . Heat Surge 3 | . . . . . . . . . 1 . . . 1 1 . . . . . . . . . . . . . . . . . . . . Short Circuit 1 | . . . . . . . . . . . . . . 1 . . . . . . . . . . . . . . . . . . . . Overflow Damage 3651 | . . . . 29 . . 12 32 142 95 25 61 52 . 163 57 514 135 389 39 108 129 70 3 320 11 17 173 99 44 123 38 353 418 Projectiles 2265 | . . . . . . . 12 . 100 . 25 47 . . . 57 193 108 124 39 67 129 52 3 317 11 17 161 59 44 54 25 318 303 Explosions 706 | . . . . 29 . . . . . . . 14 52 . . . . . 265 . 41 . 18 . 3 . . 12 40 . 69 13 35 115 Melee 680 | . . . . . . . . 32 42 95 . . . . 163 . 321 27 . . . . . . . . . . . . . . . . Knockbacks 72 | . . . . 1 . . 4 1 12 2 6 9 1 . 1 1 8 3 1 1 . . 1 . 10 . . . . . . . 10 . Impact 9 | . . . . . . . 2 1 1 1 . . . . 1 . 3 . . . . . . . . . . . . . . . . . Kinetic 61 | . . . . 1 . . 2 . 11 . 6 9 1 . . 1 4 3 1 1 . . 1 . 10 . . . . . . . 10 . Secondary 2 | . . . . . . . . . . 1 . . . . . . 1 . . . . . . . . . . . . . . . . . Self-Inflicted Damage 1392 | . . . . 29 . . . 58 130 . 61 235 192 . . . 38 . . . 26 . 95 . 3 . . 130 . . 152 . 9 234 Shots 57 | . . . . 2 . . . 1 3 . 1 4 8 . . . 1 . . . 1 . 1 . 1 . . 1 . . 17 . 1 15 Rammed 45 | . 10 3 1 1 . . 2 2 . . 1 . 5 . 1 . 1 1 . 1 . . 2 1 2 . . 4 3 . 1 . 3 . Targets Rammed 64 | . 11 3 2 7 . 2 8 2 . . 1 . 5 . 1 . 2 1 . 1 . . 2 1 3 . . 4 3 . 1 . 4 . Kicked 14 | . . . . 6 . 2 6 . . . . . . . . . . . . . . . . . . . . . . . . . . . Crushed 5 | . 1 . 1 . . . . . . . . . . . . . 1 . . . . . . . 1 . . . . . . . 1 . Highest Temperature 370 | . 36 40 6 36 . 75 144 217 198 222 237 164 370 177 226 251 284 311 110 189 159 350 15 63 288 173 190 335 306 364 305 178 178 158 Average Temperature 143 | . 18 12 3 12 . 32 34 40 31 95 95 48 90 72 63 80 66 83 39 63 42 104 10 29 86 68 82 105 89 82 161 174 129 100 Received Heat Transfer 5036 | . 180 72 39 81 . 9 117 108 636 . 159 437 327 237 . 284 114 261 122 171 6 . 7 275 543 69 31 58 64 4 396 24 168 37 Effects 4 | . . . . . . . . 2 . . . . . . . . . . . . . . . . . . . 2 . . . . . . Shutdowns 1 | . . . . . . . . . . . . . . . . . . . . . . . . . . . . 1 . . . . . . Energy Bleed 1 | . . . . . . . . . . . . . . . . . . . . . . . . . . . . 1 . . . . . . Interference 2 | . . . . . . . . 2 . . . . . . . . . . . . . . . . . . . . . . . . . . Siege Activations 103 | . . . . . . . . . . . 1 7 5 5 . 6 2 4 4 3 . . . 3 8 1 4 4 9 8 13 1 6 9 Total Turns 7770 | . . . . . . . . . . . 36 160 85 59 . 118 24 80 256 47 . . . 60 333 57 98 28 113 69 851 2194 3035 67 Longest Duration 2194 | . . . . . . . . . . . 36 51 47 22 . 29 15 34 174 24 . . . 40 135 57 53 18 39 17 737 2194 1158 15 Robots Corrupted 75 | . . . . . . . . . 1 . . . . 3 . 5 . 1 8 6 4 . 1 8 6 . 3 3 6 7 11 . 2 . Combat Hostiles 74 | . . . . . . . . . 1 . . . . 3 . 5 . 1 8 6 4 . . 8 6 . 3 3 6 7 11 . 2 . Parts Fried 157 | . . . . . . . . . 5 1 . 2 . 6 6 6 5 2 9 10 7 . 4 13 11 . 4 10 8 18 23 1 6 . Impact Corruptions 17 | . . . . . . . . 1 2 2 1 . . . 3 . 8 . . . . . . . . . . . . . . . . . Robots Melted 516 | . . . . . . . . . 1 6 . . 7 . . . . 2 . . . . . . 7 1 . 1 2 5 131 152 167 34 Combat Hostiles 456 | . . . . . . . . . 1 6 . . 6 . . . . 2 . . . . . . 7 1 . 1 2 5 119 123 149 34 Parts Melted 2041 | . . . . . . . . . 6 22 5 1 47 1 . . . 4 1 . . 1 . . 23 2 . 4 7 12 466 597 691 151 Heat Transferred 272484 | 125 625 . . . . . . . 2449 3600 1445 2912 8874 994 . 150 198 1398 1198 333 . 1443 . . 4679 905 331 1147 1554 917 67600 62156 84816 22635 Parts Sabotaged 2 | . . . . . . . . . . . . . . . . . . . . . . . . . . . . . . . . . 2 . Parts Stolen . | . . . . . . . . . . . . . . . . . . . . . . . . . . . . . . . . . . . Parts Stripped 12 | . . . . . . . . . . . . . . . . . . . . . . . . . . . . . . . 12 . . . Power Chain Reactions 8 | . . . . . . . . . . . . . 1 . . 2 1 . 2 . . . . . . . . 1 1 . . . . . Alert | -11 -10 -10 -9 -9 -9 -8 -8 -8 -7 -7 -7 -7 -7 -7 -6 -6 -6 -6 -5 -5 -5 -5 -5 -4 -4 -4 -3 -3 -2 -2 -2 -1 -1 -1 ------- Run | Yrd Mat Min Mat Min Exi Min Mat Sto Fac Was Fac Gar Fac Gar Fac Gar Fac Gar Fac Ext Cet Arc Hub Fac Arm Lab Res Tes Res Qua Sec Acc Com Ac0 Peak Influence 8282 | 10 340 135 140 197 . 45 318 294 411 136 632 1648 1461 1161 635 1083 720 692 980 527 516 430 648 413 1082 . 128 432 687 563 4037 6262 8282 . Initial 4007 | . 6 65 . . . . . 26 24 136 . 442 865 734 609 326 568 151 363 480 175 126 . 317 138 . . 25 168 339 225 2421 4007 . Average 1709 | 5 160 45 46 57 . 9 165 126 178 28 348 1202 1037 938 545 703 468 456 606 381 331 168 140 176 552 . 21 221 430 449 2611 5649 7103 . Maximum Alert Level 5 | . 1 . . . . . 1 1 2 . 2 5 4 4 2 3 3 2 3 2 2 2 2 2 3 . . 2 2 2 5 5 5 . Low Security (%) 32 | 100 58 100 100 100 . 100 75 73 60 100 24 . . . . . 19 7 11 . 9 51 72 69 24 . 100 41 4 . . . . . Level 1 13 | . 41 . . . . . 24 26 35 . 38 . . . . 10 14 19 27 52 88 40 19 27 7 . . 53 32 26 2 . . . Level 2 13 | . . . . . . . . . 3 . 37 5 . . 100 33 62 72 17 46 1 7 7 2 38 . . 4 63 73 13 . . . Level 3 6 | . . . . . . . . . . . . 25 61 78 . 56 3 . 42 . . . . . 29 . . . . . 8 . . . Level 4 3 | . . . . . . . . . . . . 63 38 21 . . . . . . . . . . . . . . . . 12 . . . Level 5 8 | . . . . . . . . . . . . 5 . . . . . . . . . . . . . . . . . . . 4 52 . High Security 22 | . . . . . . . . . . . . . . . . . . . . . . . . . . . . . . . 64 95 47 . Max Security . | . . . . . . . . . . . . . . . . . . . . . . . . . . . . . . . . . . . Sterilizations 2 | . . . . . . . . . . . . . . . . . . . . . . . . . . . . . . . 1 1 . . Squads Dispatched 212 | . 5 . 2 1 . . 1 1 11 . 3 . 6 . . . 7 . 7 3 . . 2 5 11 . 10 6 9 5 42 37 38 . Investigation 17 | . 4 . 1 . . . . 1 1 . . . . . . . 2 . 1 . . . . 1 2 . 1 1 . 2 . . . . Extermination 29 | . . . . . . . . . 5 . 1 . 2 . . . 3 . 1 . . . 1 1 4 . . 2 5 . 3 1 . . Reinforcement 41 | . 1 . 1 . . . 1 . 5 . 2 . 1 . . . . . 1 2 . . 1 3 3 . 4 3 1 . 8 2 2 . Assault 109 | . . . . 1 . . . . . . . . 3 . . . . . 3 1 . . . . 2 . . . 1 . 28 34 36 . Garrison 3 | . . . . . . . . . . . . . . . . . 2 . 1 . . . . . . . . . . . . . . . Intercept 13 | . . . . . . . . . . . . . . . . . . . . . . . . . . . 5 . 2 3 3 . . . Searches Triggered . | . . . . . . . . . . . . . . . . . . . . . . . . . . . . . . . . . . . Construction Impeded 9 | . . . . . . . . . . . 1 . 1 . . . . . . 1 . . . 1 . . . 1 . . 2 2 . . Haulers Reinforced 4 | . . . . . . . . . 1 . . . . . . . . . 1 . . . . 1 . . 1 . . . . . . . Active Scanning Responses . | . . . . . . . . . . . . . . . . . . . . . . . . . . . . . . . . . . . Cargo Convoy Interrupts 1 | . . . . . . . . . . . . . 1 . . . . . . . . . . . . . . . . . . . . . Stealth | -11 -10 -10 -9 -9 -9 -8 -8 -8 -7 -7 -7 -7 -7 -7 -6 -6 -6 -6 -5 -5 -5 -5 -5 -4 -4 -4 -3 -3 -2 -2 -2 -1 -1 -1 --------- Run | Yrd Mat Min Mat Min Exi Min Mat Sto Fac Was Fac Gar Fac Gar Fac Gar Fac Gar Fac Ext Cet Arc Hub Fac Arm Lab Res Tes Res Qua Sec Acc Com Ac0 Distress Signals 63 | . . 3 3 . . . 3 3 1 . 2 . . . . . 2 . 1 4 2 . . . 1 . 8 . 4 . 4 . 22 . Communications Jammed 305 | . . . . . . . . . . . . . 27 . . . 30 . 1 . . . 102 2 74 . . 39 30 . . . . . Distress Signals 300 | . . . . . . . . . . . . . 27 . . . 30 . 1 . . . 101 2 71 . . 39 29 . . . . . Times Spotted 1157 | . 31 12 11 18 . 5 28 19 44 3 33 32 52 20 2 19 23 21 25 27 9 29 8 23 64 4 19 24 51 17 153 94 164 73 Peak Tracking Total 20 | . 3 3 4 4 . 3 6 6 4 2 5 9 11 5 1 4 4 6 5 6 5 1 3 8 6 3 6 6 13 4 20 20 19 7 Tactical Retreats 44 | . 1 1 . 1 . 1 2 2 3 . 2 3 1 4 . 2 6 1 3 . . . . . 4 . 1 . 3 . 2 . 1 . Traps | -11 -10 -10 -9 -9 -9 -8 -8 -8 -7 -7 -7 -7 -7 -7 -6 -6 -6 -6 -5 -5 -5 -5 -5 -4 -4 -4 -3 -3 -2 -2 -2 -1 -1 -1 ------- Run | Yrd Mat Min Mat Min Exi Min Mat Sto Fac Was Fac Gar Fac Gar Fac Gar Fac Gar Fac Ext Cet Arc Hub Fac Arm Lab Res Tes Res Qua Sec Acc Com Ac0 Traps Triggered 54 | . 2 . 1 . . . . 1 5 . 2 3 1 2 2 6 . 7 . 5 . . . . . . . . . 1 1 9 6 . Indirectly 3 | . . . . . . . . . . . . . . . . . . . . 1 . . . . . . . . . . . . 2 . Trap Hack Attempts . | . . . . . . . . . . . . . . . . . . . . . . . . . . . . . . . . . . . Triggered . | . . . . . . . . . . . . . . . . . . . . . . . . . . . . . . . . . . . Disarmed . | . . . . . . . . . . . . . . . . . . . . . . . . . . . . . . . . . . . Reprogrammed . | . . . . . . . . . . . . . . . . . . . . . . . . . . . . . . . . . . . Reused . | . . . . . . . . . . . . . . . . . . . . . . . . . . . . . . . . . . . Traps Extracted . | . . . . . . . . . . . . . . . . . . . . . . . . . . . . . . . . . . . Installed . | . . . . . . . . . . . . . . . . . . . . . . . . . . . . . . . . . . . Triggered 4 | . . . . . . . . . . . . . . . . . . . . 3 . . . . . . . . . . . . 1 . Most Traps Carried 4 | . . 4 4 4 . . . . . . . . . . . . . . . . . . . . . . . . . . . . . . Machines | -11 -10 -10 -9 -9 -9 -8 -8 -8 -7 -7 -7 -7 -7 -7 -6 -6 -6 -6 -5 -5 -5 -5 -5 -4 -4 -4 -3 -3 -2 -2 -2 -1 -1 -1 ---------- Run | Yrd Mat Min Mat Min Exi Min Mat Sto Fac Was Fac Gar Fac Gar Fac Gar Fac Gar Fac Ext Cet Arc Hub Fac Arm Lab Res Tes Res Qua Sec Acc Com Ac0 Machines Disabled 176 | . 1 . . . . . 1 3 3 . 7 6 8 2 . 4 4 7 21 4 . 3 12 9 3 5 . 6 3 6 20 20 8 10 Max in Single Turn 20 | . 1 . . . . . 1 2 1 . 4 2 4 1 . 1 1 1 20 . . 1 10 4 1 1 . 2 2 1 2 2 2 2 Garrison Access 9 | . . . . . . . . 1 . . . . . . . . . . 1 . . . . . . . . . 1 1 1 4 . . Garrison Relay 9 | . . . . . . . . . . . . 3 . 2 . 2 . 2 . . . . . . . . . . . . . . . . Phase Generator 2 | . . . . . . . . . . . . 1 . . . . . . . . . . . . . . . . . . . . 1 . Network Hub 1 | . . . . . . . . . . . . . . . . . . . . . . . 1 . . . . . . . . . . . Energy Cycler 2 | . . . . . . . . . . . . . . . . . . . . . . . . . . . . . . . . 2 . . Machines Repaired . | . . . . . . . . . . . . . . . . . . . . . . . . . . . . . . . . . . . Machines Dismantled 2 | . . . . . . . . 2 . . . . . . . . . . . . . . . . . . . . . . . . . . Machines Sabotaged . | . . . . . . . . . . . . . . . . . . . . . . . . . . . . . . . . . . . Overloaded Fab Kills . | . . . . . . . . . . . . . . . . . . . . . . . . . . . . . . . . . . . Hacking | -11 -10 -10 -9 -9 -9 -8 -8 -8 -7 -7 -7 -7 -7 -7 -6 -6 -6 -6 -5 -5 -5 -5 -5 -4 -4 -4 -3 -3 -2 -2 -2 -1 -1 -1 --------- Run | Yrd Mat Min Mat Min Exi Min Mat Sto Fac Was Fac Gar Fac Gar Fac Gar Fac Gar Fac Ext Cet Arc Hub Fac Arm Lab Res Tes Res Qua Sec Acc Com Ac0 Machines Accessed 116 | . 11 . 5 . 2 . 7 6 9 . 7 2 5 1 5 . 8 . 4 5 1 . 3 3 7 . 5 4 6 4 5 . . 1 Terminals 74 | . 8 . 5 . . . 6 3 5 . 1 2 2 1 2 . 6 . 2 5 1 . 3 2 4 . 2 3 4 3 4 . . . Fabricators 14 | . . . . . . . . . 1 . 3 . 1 . 1 . 1 . 1 . . . . . 3 . 2 . 1 . . . . . Repair Stations 7 | . 1 . . . . . 1 1 2 . . . . . 1 . . . 1 . . . . . . . . . . . . . . . Recycling Units 7 | . 2 . . . . . . 1 1 . . . 1 . . . . . . . . . . 1 . . 1 . . . . . . . Scanalyzers 1 | . . . . . . . . . . . . . . . . . . . . . . . . . . . . 1 . . . . . . Garrison Access 10 | . . . . . . . . 1 . . 3 . 1 . 1 . 1 . . . . . . . . . . . 1 1 1 . . . Total Hacks 296 | . 34 . 13 . 2 . 16 17 20 . 16 5 8 1 10 . 20 . 8 13 1 . 3 11 23 . 12 10 23 6 7 . . 17 Successful 128 | . 20 . 8 . 2 . 4 6 8 . 8 . 4 1 4 . 6 . 4 5 1 . . 2 10 . 5 2 6 1 4 . . 17 Failed 167 | . 13 . 5 . . . 12 11 12 . 8 5 4 . 6 . 14 . 4 8 . . 3 9 13 . 7 8 17 5 3 . . . Catastrophic 54 | . . . 1 . . . 4 3 4 . 3 3 3 . 2 . 2 . 2 . . . 2 4 4 . 2 3 8 3 1 . . . Database Lockouts 1 | . 1 . . . . . . . . . . . . . . . . . . . . . . . . . . . . . . . . . Manual 117 | . 11 . 5 . 1 . 8 9 12 . 9 . 5 . 3 . 15 . 2 5 1 . . 1 9 6 5 4 6 . . . . . Terminals 183 | . 24 . 13 . . . 13 11 14 . 1 5 4 1 3 . 15 . 4 13 1 . 3 8 11 . 3 8 19 5 4 . . . Fabricators 40 | . . . . . . . . . 2 . 10 . 1 . 1 . 3 . 2 . . . . . 12 . 7 . 2 . . . . . Repair Stations 22 | . 7 . . . . . 3 3 3 . . . . . 4 . . . 2 . . . . . . . . . . . . . . . Recycling Units 13 | . 3 . . . . . . 2 1 . . . 2 . . . . . . . . . . 3 . . 2 . . . . . . . Scanalyzers 2 | . . . . . . . . . . . . . . . . . . . . . . . . . . . . 2 . . . . . . Garrison Access 17 | . . . . . . . . 1 . . 5 . 1 . 2 . 2 . . . . . . . . . . . 2 1 3 . . . Terminal Hacks 66 | . 11 . 7 . 2 . 1 2 3 . . . 1 1 . . 2 . . 5 1 . . 2 4 . . 1 3 . 3 . . 17 Record 18 | . . . . . 1 . . . . . . . . . . . . . . . . . . . . . . . . . . . . 17 Robot Analysis 4 | . 3 . 1 . . . . . . . . . . . . . . . . . . . . . . . . . . . . . . . Open Door 6 | . . . . . . . . . . . . . . . . . . . . 1 1 . . . . . . . 1 . 3 . . . Branch Access Points 3 | . 1 . 1 . . . . . . . . . . . . . . . . . . . . 1 . . . . . . . . . . Emergency Access Points 3 | . 1 . 1 . . . . 1 . . . . . . . . . . . . . . . . . . . . . . . . . . Terminal Index 2 | . . . . . . . . . . . . . . . . . . . . 1 . . . . . . . . 1 . . . . . Unreport Threat 4 | . . . . . . . . 1 1 . . . . . . . . . . 2 . . . . . . . . . . . . . . Locate Traps 5 | . 1 . . . . . . . . . . . . . . . 1 . . 1 . . . . 1 . . . 1 . . . . . Recall Investigation 2 | . 2 . . . . . . . . . . . . . . . . . . . . . . . . . . . . . . . . . Recall Extermination 1 | . . . . . . . . . . . . . . . . . . . . . . . . 1 . . . . . . . . . . Hauler Manifests 3 | . 1 . 1 . . . . . 1 . . . . . . . . . . . . . . . . . . . . . . . . . Zone Layout 13 | . 2 . 3 . . . 1 . 1 . . . 1 . . . 1 . . . . . . . 3 . . 1 . . . . . . Patrol Navigation 1 | . . . . . . . . . . . . . . 1 . . . . . . . . . . . . . . . . . . . . Derelict Proto ID Bank 1 | . . . . . 1 . . . . . . . . . . . . . . . . . . . . . . . . . . . . . Fabricator Hacks 8 | . . . . . . . . . . . 1 . . . . . . . 2 . . . . . 4 . 1 . . . . . . . Network Status 2 | . . . . . . . . . . . 1 . . . . . . . . . . . . . . . 1 . . . . . . . Load Schematic 4 | . . . . . . . . . . . . . . . . . . . 1 . . . . . 3 . . . . . . . . . Build 2 | . . . . . . . . . . . . . . . . . . . 1 . . . . . 1 . . . . . . . . . Repair Station Hacks 17 | . 6 . . . . . 3 2 1 . . . . . 3 . . . 2 . . . . . . . . . . . . . . . Scan Component 10 | . 3 . . . . . 2 1 1 . . . . . 2 . . . 1 . . . . . . . . . . . . . . . Repair 7 | . 3 . . . . . 1 1 . . . . . . 1 . . . 1 . . . . . . . . . . . . . . . Recycling Unit Hacks 1 | . . . . . . . . . . . . . . . . . . . . . . . . . . . 1 . . . . . . . Retrieve Components 1 | . . . . . . . . . . . . . . . . . . . . . . . . . . . 1 . . . . . . . Scanalyzer . | . . . . . . . . . . . . . . . . . . . . . . . . . . . . . . . . . . . Garrison Access Hacks 9 | . . . . . . . . 1 . . 1 . 1 . 1 . 1 . . . . . . . . . . . 2 1 1 . . . Unlock Access 4 | . . . . . . . . . . . 1 . 1 . 1 . 1 . . . . . . . . . . . . . . . . . Seal Access 4 | . . . . . . . . 1 . . . . . . . . . . . . . . . . . . . . 1 1 1 . . . Coupler Status 1 | . . . . . . . . . . . . . . . . . . . . . . . . . . . . . 1 . . . . . Unauthorized Hacks 27 | . 3 . 1 . . . . 1 4 . 6 . 2 . . . 3 . . . . . . . 2 . 3 1 1 . . . . . Terminals 7 | . 1 . 1 . . . . . 2 . . . . . . . 1 . . . . . . . 1 . . 1 . . . . . . Track 3 | . . . 1 . . . . . 1 . . . . . . . . . . . . . . . 1 . . . . . . . . . Assimilate 1 | . . . . . . . . . 1 . . . . . . . . . . . . . . . . . . . . . . . . . Operators 3 | . 1 . . . . . . . . . . . . . . . 1 . . . . . . . . . . 1 . . . . . . Fabricators 12 | . . . . . . . . . 1 . 6 . . . . . 1 . . . . . . . 1 . 2 . 1 . . . . . Report 1 | . . . . . . . . . . . 1 . . . . . . . . . . . . . . . . . . . . . . . Liberate 4 | . . . . . . . . . . . 3 . . . . . . . . . . . . . . . 1 . . . . . . . Fabnet 1 | . . . . . . . . . . . 1 . . . . . . . . . . . . . . . . . . . . . . . Haulers 4 | . . . . . . . . . 1 . 1 . . . . . . . . . . . . . . . 1 . 1 . . . . . Download 1 | . . . . . . . . . . . . . . . . . 1 . . . . . . . . . . . . . . . . . Recompile 1 | . . . . . . . . . . . . . . . . . . . . . . . . . 1 . . . . . . . . . Repair Stations . | . . . . . . . . . . . . . . . . . . . . . . . . . . . . . . . . . . . Recycling Units 7 | . 2 . . . . . . 1 1 . . . 2 . . . . . . . . . . . . . 1 . . . . . . . Reject 1 | . . . . . . . . . . . . . . . . . . . . . . . . . . . 1 . . . . . . . Recyclers 2 | . . . . . . . . . 1 . . . 1 . . . . . . . . . . . . . . . . . . . . . Mask 1 | . . . . . . . . . . . . . 1 . . . . . . . . . . . . . . . . . . . . . Tunnel 3 | . 2 . . . . . . 1 . . . . . . . . . . . . . . . . . . . . . . . . . . Scanalyzers . | . . . . . . . . . . . . . . . . . . . . . . . . . . . . . . . . . . . Garrison Access 1 | . . . . . . . . . . . . . . . . . 1 . . . . . . . . . . . . . . . . . Eject 1 | . . . . . . . . . . . . . . . . . 1 . . . . . . . . . . . . . . . . . Data Cores Recovered 4 | . . . . . . . 1 1 . . . . . . . . . . 1 . . . . . . . . . . 1 . . . . Used 1 | . . . . . . . . . . . . . . . . . . . 1 . . . . . . . . . . . . . . . Hacking Detections 91 | . 5 . 5 . . . 7 4 8 . 7 2 3 1 5 . 7 . 3 4 . . 3 3 7 . 4 4 4 3 2 . . . Full Trace Events 6 | . . . . . . . . . 1 . . 1 . . . . . . 1 . . . . 1 1 . . . . 1 . . . . Feedback Events . | . . . . . . . . . . . . . . . . . . . . . . . . . . . . . . . . . . . Feedback Blocked . | . . . . . . . . . . . . . . . . . . . . . . . . . . . . . . . . . . . Robot Schematics Acquired . | . . . . . . . . . . . . . . . . . . . . . . . . . . . . . . . . . . . Robots Built . | . . . . . . . . . . . . . . . . . . . . . . . . . . . . . . . . . . . Authchips . | . . . . . . . . . . . . . . . . . . . . . . . . . . . . . . . . . . . Time . | . . . . . . . . . . . . . . . . . . . . . . . . . . . . . . . . . . . Total Robot Build Rating . | . . . . . . . . . . . . . . . . . . . . . . . . . . . . . . . . . . . Part Schematics Acquired 4 | . . . . . . . . . . . . . . . . . 1 . . . . . . . . . . . . . 3 . . . Parts Built 2 | . . . . . . . . . . . . . . . . . . . 1 . . . . . 1 . . . . . . . . . Authchips 1 | . . . . . . . . . . . . . . . . . . . . . . . . . 1 . . . . . . . . . Time 408 | . . . . . . . . . . . . . . . . . . . 204 . . . . . 204 . . . . . . . . . Total Part Build Rating 16 | . . . . . . . . . . . . . . . . . . . 8 . . . . . 8 . . . . . . . . . Parts Repaired 7 | . 3 . . . . . 1 1 . . . . . . 1 . . . 1 . . . . . . . . . . . . . . . Time 242 | . 78 . . . . . 32 26 . . . . . . 44 . . . 62 . . . . . . . . . . . . . . . Parts Recycled . | . . . . . . . . . . . . . . . . . . . . . . . . . . . . . . . . . . . Recycled Matter . | . . . . . . . . . . . . . . . . . . . . . . . . . . . . . . . . . . . Retrieved Matter . | . . . . . . . . . . . . . . . . . . . . . . . . . . . . . . . . . . . Retrieved Components 9 | . . . . . . . . . . . . . . . . . . . . . . . . . . . 9 . . . . . . . Parts Scanalyzed . | . . . . . . . . . . . . . . . . . . . . . . . . . . . . . . . . . . . Part Schematics Acquired . | . . . . . . . . . . . . . . . . . . . . . . . . . . . . . . . . . . . Parts Damaged . | . . . . . . . . . . . . . . . . . . . . . . . . . . . . . . . . . . . Bothacking | -11 -10 -10 -9 -9 -9 -8 -8 -8 -7 -7 -7 -7 -7 -7 -6 -6 -6 -6 -5 -5 -5 -5 -5 -4 -4 -4 -3 -3 -2 -2 -2 -1 -1 -1 ------------ Run | Yrd Mat Min Mat Min Exi Min Mat Sto Fac Was Fac Gar Fac Gar Fac Gar Fac Gar Fac Ext Cet Arc Hub Fac Arm Lab Res Tes Res Qua Sec Acc Com Ac0 Used RIF Installer 4 | . . . . . . . . . . . . 1 . 1 . 1 . 1 . . . . . . . . . . . . . . . . Command Fork 1 | . . . . . . . . . . . . . . 1 . . . . . . . . . . . . . . . . . . . . Watcher Feeds 1 | . . . . . . . . . . . . . . . . . . 1 . . . . . . . . . . . . . . . . Patrol Navigation 1 | . . . . . . . . . . . . . . . . 1 . . . . . . . . . . . . . . . . . . Robots Hacked 38 | . . . . . . . . . 2 . . . 4 2 . . 8 9 1 4 . . 2 2 1 . . . 1 2 . . . . Non-combat 17 | . . . . . . . . . 2 . . . 2 . . . 5 . 1 2 . . 2 2 1 . . . . . . . . . Combat 21 | . . . . . . . . . . . . . 2 2 . . 3 9 . 2 . . . . . . . . 1 2 . . . . Robot Hacks Applied 52 | . . . . . . . . . 2 . . . 9 3 . . 14 8 1 4 . . 3 4 1 . . . 1 2 . . . . parse_system 3 | . . . . . . . . . . . . . . . . . . . . 1 . . . . . . . . . 2 . . . . map_walls 1 | . . . . . . . . . . . . . . . . . 1 . . . . . . . . . . . . . . . . . find_fabricator 1 | . . . . . . . . . 1 . . . . . . . . . . . . . . . . . . . . . . . . . drop_inventory 5 | . . . . . . . . . . . . . . . . . 2 . 1 . . . 1 1 . . . . . . . . . . check_alert 1 | . . . . . . . . . 1 . . . . . . . . . . . . . . . . . . . . . . . . . purge_threat 14 | . . . . . . . . . . . . . 5 . . . 4 . . 1 . . 2 2 . . . . . . . . . . map_route 1 | . . . . . . . . . . . . . 1 . . . . . . . . . . . . . . . . . . . . . find_shortcuts 1 | . . . . . . . . . . . . . . 1 . . . . . . . . . . . . . . . . . . . . find_garrison 1 | . . . . . . . . . . . . . . . . . 1 . . . . . . . . . . . . . . . . . amplify_resonance 3 | . . . . . . . . . . . . . . 1 . . . 1 . . . . . . . . . . 1 . . . . . reboot_system 1 | . . . . . . . . . . . . . . . . . 1 . . . . . . . . . . . . . . . . . overwrite_iff 3 | . . . . . . . . . . . . . 1 1 . . . 1 . . . . . . . . . . . . . . . . formatsys_low 7 | . . . . . . . . . . . . . 1 . . . 2 . . 2 . . . 1 1 . . . . . . . . . formatsys_high 10 | . . . . . . . . . . . . . 1 . . . 3 6 . . . . . . . . . . . . . . . . Relay Couplers Released 48 | . . . . . . . . . . . . 13 . 7 . 6 4 8 3 . . . . . . . . . 3 2 2 . . . Ejected 4 | . . . . . . . . . . . . . . . . . 4 . . . . . . . . . . . . . . . . . Machine Destruction 44 | . . . . . . . . . . . . 13 . 7 . 6 . 8 3 . . . . . . . . . 3 2 2 . . . Attached 23 | . . . . . . . . . . . . . 5 1 1 . 5 4 1 1 . 1 . 1 . . . . 3 . . . . . Fabnet Peak Effective % 3 | . . . . . . . . . . . . . . . 3 3 3 3 1 1 1 1 1 . . . . . . . . . . . Autooverrided 2 | . . . . . . . . . . . . . . . . . . 1 . 1 . . . . . . . . . . . . . . Robots Rewired 13 | . . . . . . . . . . . . . . . . . . 1 . 6 . . . 1 4 . 1 . . . . . . . Allies Hacked 2 | . . . . . . . . . . . 2 . . . . . . . . . . . . . . . . . . . . . . . Hacks Repelled . | . . . . . . . . . . . . . . . . . . . . . . . . . . . . . . . . . . . Allies | -11 -10 -10 -9 -9 -9 -8 -8 -8 -7 -7 -7 -7 -7 -7 -6 -6 -6 -6 -5 -5 -5 -5 -5 -4 -4 -4 -3 -3 -2 -2 -2 -1 -1 -1 -------- Run | Yrd Mat Min Mat Min Exi Min Mat Sto Fac Was Fac Gar Fac Gar Fac Gar Fac Gar Fac Ext Cet Arc Hub Fac Arm Lab Res Tes Res Qua Sec Acc Com Ac0 Total Allies 81 | . . . . 4 . . . 1 1 19 . 2 3 1 . . 6 10 . 15 5 . . 3 6 . 1 . . . . . . 4 Largest Group 19 | . . . . 3 3 3 . 1 1 19 14 2 2 1 . . 3 4 3 7 10 8 7 8 3 . 1 1 . . . . . 1 Highest-Rated Group 779 | . . . . 40 40 40 . 100 10 465 324 175 76 12 . . 60 172 87 369 779 717 558 570 151 . 64 64 . . . . . 245 Highest-Rated Ally 245 | . . . . 31 16 16 . 100 10 35 31 95 76 12 . . 32 85 29 159 159 159 96 96 137 . 64 64 . . . . . 245 Total Orders 91 | . . . . . . . . . . . . . . . . . 1 4 10 3 2 4 3 . 7 . 10 11 32 . . . . 4 STAY 14 | . . . . . . . . . . . . . . . . . . 2 1 1 1 2 1 . 3 . . 1 . . . . . 2 FOLLOW 14 | . . . . . . . . . . . . . . . . . . 2 2 1 1 2 2 . 1 . . 1 . . . . . 2 AID 5 | . . . . . . . . . . . . . . . . . 1 . . 1 . . . . 3 . . . . . . . . . EXPLORE 42 | . . . . . . . . . . . . . . . . . . . 4 . . . . . . . 5 4 29 . . . . . RETURN 16 | . . . . . . . . . . . . . . . . . . . 3 . . . . . . . 5 5 3 . . . . . Ally Attacks 471 | . . . . 2 . 20 . 19 . . 89 12 27 . . . 18 40 18 71 35 27 32 29 20 . . 2 . . . . . 10 Total Damage 12340 | . . . . 21 . 252 . 585 . . 1210 626 552 . . . 266 931 263 1637 812 910 1290 1332 1034 . . 22 . . . . . 597 Kills 83 | . . . . . . 2 . 6 . . 14 5 6 . . . 1 5 3 12 5 4 9 6 2 . . . . . . . . 3 Allies Corrupted 4 | . . . . . . . . . . 1 1 . . . . . . 1 . . . . . . . . . . 1 . . . . . Allies Melted . | . . . . . . . . . . . . . . . . . . . . . . . . . . . . . . . . . . . Field Lobotomies 5 | . . . . . . . . . . . . . . . . . . . . . . . . . 1 . . . . . . . . 4 Intel | -11 -10 -10 -9 -9 -9 -8 -8 -8 -7 -7 -7 -7 -7 -7 -6 -6 -6 -6 -5 -5 -5 -5 -5 -4 -4 -4 -3 -3 -2 -2 -2 -1 -1 -1 ------- Run | Yrd Mat Min Mat Min Exi Min Mat Sto Fac Was Fac Gar Fac Gar Fac Gar Fac Gar Fac Ext Cet Arc Hub Fac Arm Lab Res Tes Res Qua Sec Acc Com Ac0 Robot Analysis Total 4 | . 3 . 1 . . . . . . . . . . . . . . . . . . . . . . . . . . . . . . . Derelict Logs Recovered 1 | . . . . 1 . . . . . . . . . . . . . . . . . . . . . . . . . . . . . . Drone Launches 71 | . . . . . . . . . . . . . . . . . . . 7 . . . . . . . 8 2 52 . . . . 2 Drone Recoveries 52 | . . . . . . . . . . . . . . . . . . . 6 . . . . . . . 8 2 36 . . . . . Exploration | -11 -10 -10 -9 -9 -9 -8 -8 -8 -7 -7 -7 -7 -7 -7 -6 -6 -6 -6 -5 -5 -5 -5 -5 -4 -4 -4 -3 -3 -2 -2 -2 -1 -1 -1 ------------- Run | Yrd Mat Min Mat Min Exi Min Mat Sto Fac Was Fac Gar Fac Gar Fac Gar Fac Gar Fac Ext Cet Arc Hub Fac Arm Lab Res Tes Res Qua Sec Acc Com Ac0 Turns Passed 70649 | 67 1990 1985 1200 2894 1420 1264 1626 1854 3289 1910 1060 1683 1596 931 722 1206 1283 1376 1526 1667 531 1594 346 1094 1892 411 1846 817 1626 1607 3944 7836 9077 5479 Spaces Moved 23242 | 39 805 504 324 840 429 363 588 606 1256 509 539 597 526 302 255 372 416 451 453 570 191 302 108 363 580 159 732 231 499 453 1218 2297 2441 2924 Core 23 | . . . . . . . . . . . . . . . . . . . . . . 23 . . . . . . . . . . . . Treads 20289 | 4 805 504 324 346 . . 236 606 768 . 279 597 526 302 255 372 416 451 453 570 191 279 108 363 580 159 732 231 499 453 1218 2297 2441 2924 Legs 1673 | 35 . . . 494 429 363 352 . . . . . . . . . . . . . . . . . . . . . . . . . . . Wheels 1257 | . . . . . . . . . 488 509 260 . . . . . . . . . . . . . . . . . . . . . . . Hover . | . . . . . . . . . . . . . . . . . . . . . . . . . . . . . . . . . . . Flight . | . . . . . . . . . . . . . . . . . . . . . . . . . . . . . . . . . . . Fastest Speed 120 | 120 160 320 320 320 330 330 190 240 145 145 145 160 240 240 240 240 240 240 245 245 245 245 245 163 155 155 155 233 233 235 151 231 151 151 Average Speed 222 | 124 196 320 320 326 330 330 215 240 208 145 157 197 240 240 240 240 240 240 245 245 245 466 245 242 189 173 218 239 236 239 222 231 192 151 Slowest Speed 3150 | 160 320 320 480 540 330 330 240 240 245 160 160 240 240 240 240 240 240 245 245 245 245 3150 245 243 243 238 241 241 238 243 240 240 231 151 Overloaded Moves . | . . . . . . . . . . . . . . . . . . . . . . . . . . . . . . . . . . . Propulsion Burnouts . | . . . . . . . . . . . . . . . . . . . . . . . . . . . . . . . . . . . Robots Hopped . | . . . . . . . . . . . . . . . . . . . . . . . . . . . . . . . . . . . Cave-ins Triggered 1 | . . . . . . . . . . . . . . . . . . . . . . . . . . . . . . . . . . 1 Teleports 3 | . . . . . . . . . . . . . . . . . . . . . . . . . . . . . 1 . . . 1 1 Exploration Rate (%) 57 | 3 96 65 34 100 70 71 46 91 51 96 24 75 24 44 7 52 13 65 15 87 69 97 20 17 51 93 33 82 46 54 77 75 76 93 Regions Visited 34 Branch Regions 16 Pre-discovered Areas 4 | . 2 . . . 1 . . 1 . . . . . . . . . . . . . . . . . . . . . . . . . . Known Exits Taken 11 | . 1 . 1 . . . . 1 . . 1 . 1 . 1 . 1 . . . . . 1 1 . . . 1 . . 1 . . . Unknown Exits Taken 17 | 1 . 1 . 1 1 1 1 . . . . . . . . . . . 1 1 1 1 . . 1 1 1 . 1 1 . 1 1 . Scrap Searched 2 | . . . . 1 . 1 . . . . . . . . . . . . . . . . . . . . . . . . . . . . Spaces Dug 912 | . . 1 . 11 . . 7 5 76 . 31 27 16 5 11 9 16 1 50 3 . . 5 9 21 . 19 21 30 9 21 31 84 393 Terrain Destroyed 2985 | . . 1 . 52 . . 8 19 124 . 34 136 79 8 11 18 29 13 64 8 . 11 160 15 77 1 24 91 72 21 32 156 197 1524 Melee 134 | . . . . . . . 7 5 58 . 5 6 12 5 9 9 11 . 2 3 . . . 1 . . 1 . . . . . . . Projectile 548 | . . 1 . . . . 1 . 19 . 4 8 11 3 2 2 14 13 30 5 . 11 15 14 77 1 23 16 50 21 32 51 37 87 AOE 2303 | . . . . 52 . . . 14 47 . 25 122 56 . . 7 4 . 32 . . . 145 . . . . 75 22 . . 105 160 1437 Terrain Rammed . | . . . . . . . . . . . . . . . . . . . . . . . . . . . . . . . . . . . Walls Destroyed . | . . . . . . . . . . . . . . . . . . . . . . . . . . . . . . . . . . . Machines Disabled . | . . . . . . . . . . . . . . . . . . . . . . . . . . . . . . . . . . . Actions | -11 -10 -10 -9 -9 -9 -8 -8 -8 -7 -7 -7 -7 -7 -7 -6 -6 -6 -6 -5 -5 -5 -5 -5 -4 -4 -4 -3 -3 -2 -2 -2 -1 -1 -1 --------- Run | Yrd Mat Min Mat Min Exi Min Mat Sto Fac Was Fac Gar Fac Gar Fac Gar Fac Gar Fac Ext Cet Arc Hub Fac Arm Lab Res Tes Res Qua Sec Acc Com Ac0 Total 39482 | 46 1057 803 429 912 438 414 814 865 1624 1673 669 918 731 432 336 583 598 649 798 745 248 433 150 505 1141 260 965 478 924 979 2421 4817 6744 3883 Wait 10797 | . 143 259 47 3 . 29 72 110 48 1117 62 99 48 44 33 99 29 49 221 31 16 35 2 18 271 44 117 98 143 334 726 2155 3757 538 Move 23212 | 38 804 503 323 839 428 362 588 605 1256 508 539 596 526 301 254 371 416 450 452 569 190 301 107 362 579 158 731 230 498 452 1217 2296 2440 2923 Hop . | . . . . . . . . . . . . . . . . . . . . . . . . . . . . . . . . . . . Pick Up 372 | . 9 5 15 7 5 3 22 11 23 4 5 23 10 9 7 11 13 17 10 6 5 2 1 11 19 5 4 11 15 27 13 6 18 20 Fast Attach 334 | 1 3 . 5 3 . 1 8 15 15 9 2 5 4 1 6 6 11 7 8 2 3 9 1 4 29 13 14 6 15 13 26 41 25 23 Attach 219 | . 2 2 3 4 . 3 3 2 14 4 4 13 10 4 4 5 6 7 4 . 3 2 1 7 13 3 4 2 13 6 20 10 21 20 Detach 164 | . . . 2 . . . 2 5 10 4 5 3 7 1 1 2 5 3 4 . 1 2 1 4 12 2 6 2 8 7 19 15 16 15 Swap 631 | 2 3 2 2 6 . 1 19 18 51 . 11 28 35 15 2 9 24 23 27 23 2 11 6 28 33 3 17 27 43 21 36 10 27 66 Drop 584 | . 7 . 4 7 5 5 29 27 34 17 5 21 8 4 9 13 18 19 12 7 10 5 3 9 42 14 15 13 25 35 32 42 45 43 Fire 2793 | 5 75 29 26 36 . 8 56 40 105 7 29 114 63 37 8 43 57 56 58 79 17 66 26 60 139 17 56 85 153 84 321 228 375 235 Melee 205 | . . . . . . . 8 8 62 3 6 10 13 12 11 14 18 5 2 20 . . . 1 . 1 1 . . . 10 . . . Ram 1 | . . . . . . . . . . . . . . . . . . . . . . . . . 1 . . . . . . . . . Kick 14 | . . . . 6 . 2 6 . . . . . . . . . . . . . . . . . . . . . . . . . . . Crush 48 | . 11 3 2 1 . . 1 2 . . 1 . 5 . 1 . 1 1 . 1 . . 2 1 3 . . 4 3 . 1 . 4 . Escape Stasis 65 | . . . . . . . . . 6 . . 6 2 4 . 10 . 12 . 7 . . . . . . . . . . . 14 4 . Rewire 13 | . . . . . . . . . . . . . . . . . . . . . 1 . . . . . . . . . . . 12 . Trap . | . . . . . . . . . . . . . . . . . . . . . . . . . . . . . . . . . . . Miscellaneous 30 | . . . . . . . . 22 . . . . . . . . . . . . . . . . . . . . 8 . . . . . Route ------- -11/Scrapyard -10/Materials (discovered 4 exits: *Mat x3 / *Min) -10/Mines (discovered 3 exits: *Mat x2 / [*Sub]) -9/Materials (discovered 3 exits: Mat / *Min x2) -9/Mines (discovered 4 exits: *Mat x2 / *Exi / [*Zio]) -9/Exiles -8/Mines -8/Materials (discovered 2 exits: *Fac / *Sto) -8/Storage (discovered 2 exits: *Fac / [*Rec]) -7/Factory (discovered 5 exits: *Fac x4 / [*Low]) -7/Waste -7/Factory (discovered 4 exits: *Fac / [*Low x2] / Gar) -7/Garrison (discovered 3 exits: *Fac x3) -7/Factory (discovered 2 exits: [*Low] / Gar) -7/Garrison -6/Factory -6/Garrison (discovered 2 exits: *Fac x2) -6/Factory (discovered 2 exits: [*Low] / Gar) -6/Garrison (discovered 2 exits: *Fac x2) -5/Factory (discovered 2 exits: *Fac / *Ext) -5/Extension (discovered 2 exits: *Fac / *Cet) -5/Cetus (discovered 2 exits: *Fac / *Arc) -5/Archives (discovered 3 exits: *Fac / *Hub x2) -5/Hub_04(d) -4/Factory (discovered 3 exits: Upp x2 / *Arm) -4/Armory (discovered 3 exits: *Res x2 / *Lab) -4/Lab -3/Research (discovered 2 exits: *Res / *Tes) -3/Testing -2/Research -2/Quarantine -2/Section 7 -1/Access (discovered 2 exits: [Sur] / [*Com]) -1/Command (discovered 3 exits: [*Sur x2] / *Ac0) -1/Access_0 To Fleet Rendezvous History --------- Turn | Location | Event 1 | -11/Scrapyard | Discovered new exit (range 2) 68 | -11/Scrapyard | Entered Materials 80 | -10/Materials | Identified exit to Mines 310 | -10/Materials | Build established: Mutant 436 | -10/Materials | Discovered new exit (range 16) 722 | -10/Materials | Central database locked down 917 | -10/Materials | Discovered new exit (range 15) 1075 | -10/Materials | Discovered new exit (range 12) 1479 | -10/Materials | Repaired Assault Rifle 1507 | -10/Materials | Repaired Lgt. Treads 1534 | -10/Materials | Repaired Ion Engine 2058 | -10/Materials | Entered Mines 2239 | -10/Mines | Found a hidden stash of uninstalled traps 2341 | -10/Mines | Discovered new exit (range 10) 3070 | -10/Mines | Discovered new exit (range 7) 3311 | -10/Mines | Assembled infested the area 3389 | -10/Mines | Discovered new exit (range 4) 4043 | -10/Mines | Entered Materials 4043 | -9/Materials | Evolved 2 slots: Utility x1, Weapon x1 4327 | -9/Materials | Identified exit to Mines 4437 | -9/Materials | Build established: Tank 4809 | -9/Materials | Discovered new exit (range 11) 5110 | -9/Materials | Build established: Gunner 5243 | -9/Materials | Entered Mines 5454 | -9/Mines | A Derelict revealed a hidden shortcut to a safe place 5845 | -9/Mines | Received a Rocket Launcher from a helpful Derelict 6094 | -9/Mines | Discovered new exit (range 8) 6390 | -9/Mines | Met a Derelict testing a Signal Generator 6596 | -9/Mines | Learned Materials security intel 6737 | -9/Mines | Build established: Scavenger-Gunner 7422 | -9/Mines | Discovered new exit (range 3) 7449 | -9/Mines | Assisted by bots powering up and referring to "LRC-V3" 8110 | -9/Mines | Deemed a non-threat by the Exiles lab entrance 8113 | -9/Mines | Discovered new exit (range 5) 8137 | -9/Mines | Entered Exiles 8137 | -9/Exiles | Accompanied by 3 allies 8217 | -9/Exiles | Met 8R-AWN 8269 | -9/Exiles | Met EX-HEX 8395 | -9/Exiles | Met EX-DEC 8454 | -9/Exiles | Learned location of Zion (-7) 8524 | -9/Exiles | Met EX-BIN 8847 | -9/Exiles | Discovered new exit (range 14) 9130 | -9/Exiles | Aligned with FarCom system 9133 | -9/Exiles | Given EX-Vault access code 9212 | -9/Exiles | Opened EX-Vault 9229 | -9/Exiles | Found Field Lobotomy Kit 9233 | -9/Exiles | Found Potential Leg 9238 | -9/Exiles | Found Potential Leg 9255 | -9/Exiles | Found Firepult 9322 | -9/Exiles | Warned to stay clear of 0b10 Research branches 9349 | -9/Exiles | Exiles lab attacked by MAIN.C 9557 | -9/Exiles | Stole three prototypes: Field Lobotomy Kit, Firepult, Potential Leg 9557 | -9/Exiles | Entered Mines 9557 | -8/Mines | Accompanied by 3 allies 9847 | -8/Mines | Build established: Scavenger-Skirmisher 10104 | -8/Mines | Lost 3 parts (1p2w) 10689 | -8/Mines | Discovered new exit (range 6) 10821 | -8/Mines | Entered Materials 10821 | -8/Materials | Evolved 2 slots: Propulsion x2 11056 | -8/Materials | Discovered new exit (range 3) 11136 | -8/Materials | Build established: Skirmisher 11721 | -8/Materials | Build established: Scavenger-Skirmisher 11733 | -8/Materials | Discovered new exit (range 10) 11975 | -8/Materials | Repaired Hvy. Assault Rifle 12336 | -8/Materials | Identified exit to Factory 12447 | -8/Materials | Entered Storage 13274 | -8/Storage | Repaired Lgt. Treads 13375 | -8/Storage | Met 01-MTF 13932 | -8/Storage | Discovered new exit (range 7) 14164 | -8/Storage | Discovered exit to Factory (range 16) 14243 | -8/Storage | Murdered 01-MTF 14243 | -8/Storage | Destroyed 01-MTF 14247 | -8/Storage | Found Corrupted Prototype Device 14247 | -8/Storage | Identified 01-MTF's Autohacker 14301 | -8/Storage | Entered Factory 14301 | -7/Factory | Evolved 2 slots: Utility x2 14303 | -7/Factory | FarCom data flow suspended 14605 | -7/Factory | Discovered new exit (range 16) 14685 | -7/Factory | Identified exit to Factory 14938 | -7/Factory | Build established: Scavenger-Tank 15436 | -7/Factory | Discovered new exit (range 15) 15565 | -7/Factory | Discovered exit to Factory (range 15) 16269 | -7/Factory | Discovered exit to Factory (range 15) 17272 | -7/Factory | Discovered exit to Factory (range 16) 17590 | -7/Factory | Sucked down chute 17590 | -7/Factory | Entered Waste 17702 | -7/Waste | Build established: Scavenger-Mutant 17901 | -7/Waste | Spotted C-40 Crusher 17902 | -7/Waste | Destroyed C-40 Crusher 18047 | -7/Waste | Spotted C-40 Crusher 18050 | -7/Waste | Destroyed C-40 Crusher 18051 | -7/Waste | Destroyed C-40 Crusher 18129 | -7/Waste | Spotted C-40 Crusher 18131 | -7/Waste | Destroyed C-40 Crusher 18756 | -7/Waste | Spotted C-40 Crusher 18758 | -7/Waste | Spotted C-40 Crusher 18762 | -7/Waste | Destroyed C-40 Crusher 18762 | -7/Waste | Destroyed C-40 Crusher 18937 | -7/Waste | Warlord forces began an assault 18953 | -7/Waste | Discovered new exit (range 15) 19031 | -7/Waste | Build established: Mutant 19500 | -7/Waste | Entered Factory 19500 | -7/Factory | Accompanied by 14 allies 19915 | -7/Factory | Discovered new exit (range 13) 19956 | -7/Factory | Lost 7 allies 20064 | -7/Factory | Discovered new exit (range 14) 20205 | -7/Factory | Discovered exit to Factory (range 7) 20560 | -7/Factory | Identified exit to Garrison 20560 | -7/Factory | Entered Garrison 20613 | -7/Garrison | Triggered checkpoint 20613 | -7/Garrison | Triggered checkpoint 20714 | -7/Garrison | Destroyed 15 combat bots 20799 | -7/Garrison | Discovered new exit (range 12) 20842 | -7/Garrison | Triggered checkpoint 20895 | -7/Garrison | Garrison Relay disabled 21078 | -7/Garrison | Triggered checkpoint 21167 | -7/Garrison | Discovered new exit (range 10) 21188 | -7/Garrison | Triggered checkpoint 21211 | -7/Garrison | Found embedded Infiltrators 21234 | -7/Garrison | Garrison Relay disabled 21686 | -7/Garrison | Phase Generator disabled 21815 | -7/Garrison | Build established: Scavenger-Tank 21950 | -7/Garrison | Triggered checkpoint 21998 | -7/Garrison | Discovered new exit (range 10) 22075 | -7/Garrison | Installed Relay Interface Framework 22157 | -7/Garrison | Garrison Relay disabled 22243 | -7/Garrison | Entered Factory 22243 | -7/Factory | Accompanied by 1 ally 22282 | -7/Factory | Discovered new exit (range 9) 22461 | -7/Factory | Build established: Bothacker-Mutant 22909 | -7/Factory | Cargo convoy interrupted 22983 | -7/Factory | Destroyed 8 combat bots 23043 | -7/Factory | First assault squad dispatched 23836 | -7/Factory | Identified exit to Garrison 23839 | -7/Factory | Entered Garrison 23839 | -7/Garrison | Accompanied by 1 ally 23989 | -7/Garrison | Triggered checkpoint 24018 | -7/Garrison | Build established: Hauler-Mutant 24020 | -7/Garrison | Garrison Relay disabled 24188 | -7/Garrison | Core integrity fell below 50% 24265 | -7/Garrison | Triggered checkpoint 24482 | -7/Garrison | Discovered exit to Factory (range 10) 24543 | -7/Garrison | Triggered checkpoint 24601 | -7/Garrison | Garrison Relay disabled 24667 | -7/Garrison | Expanded RIF knowledge: Command Fork 24760 | -7/Garrison | System corruption reached 10% 24770 | -7/Garrison | Entered Factory 24770 | -6/Factory | Evolved 2 slots: Power x1, Utility x1 24912 | -6/Factory | Build established: Bothacker-Mutant 24954 | -6/Factory | Identified exit to Garrison 25056 | -6/Factory | Repaired Imp. Deuterium Engine 25492 | -6/Factory | Entered Garrison 25540 | -6/Garrison | Triggered checkpoint 25618 | -6/Garrison | Garrison Relay disabled 25744 | -6/Garrison | Triggered checkpoint 25942 | -6/Garrison | Lost 3 parts (2u1w) 25946 | -6/Garrison | System corruption reached 10% 26004 | -6/Garrison | Triggered checkpoint 26077 | -6/Garrison | Garrison Relay disabled 26153 | -6/Garrison | Discovered new exit (range 10) 26377 | -6/Garrison | Triggered checkpoint 26504 | -6/Garrison | Discovered new exit (range 15) 26529 | -6/Garrison | Expanded RIF knowledge: Patrol Navigation 26598 | -6/Garrison | Triggered checkpoint 26698 | -6/Garrison | Entered Factory 27425 | -6/Factory | Found Prototype Processor 27425 | -6/Factory | Identified Exp. Targeting Computer 27586 | -6/Factory | Discovered new exit (range 15) 27695 | -6/Factory | Build established: Bothacker-Tank 27880 | -6/Factory | Garrison activated, responded to threat 27975 | -6/Factory | Identified exit to Garrison 27981 | -6/Factory | Entered Garrison 28075 | -6/Garrison | Triggered checkpoint 28076 | -6/Garrison | Local machine network offline 28137 | -6/Garrison | Garrison Relay disabled 28252 | -6/Garrison | Triggered checkpoint 28281 | -6/Garrison | Triggered checkpoint 28319 | -6/Garrison | Triggered checkpoint 28366 | -6/Garrison | Lost 3 allies 28424 | -6/Garrison | Discovered new exit (range 12) 28495 | -6/Garrison | Triggered checkpoint 28672 | -6/Garrison | Garrison Relay disabled 28801 | -6/Garrison | Spotted Striker 28801 | -6/Garrison | Spotted Striker 28819 | -6/Garrison | Destroyed Striker 28981 | -6/Garrison | Triggered checkpoint 29038 | -6/Garrison | Expanded RIF knowledge: Watcher Feeds 29143 | -6/Garrison | Discovered new exit (range 8) 29176 | -6/Garrison | Rewired B-75 Beast 29178 | -6/Garrison | Spotted B-90 Cyclops 29185 | -6/Garrison | Destroyed B-90 Cyclops 29187 | -6/Garrison | Destroyed B-75 Beast 29260 | -6/Garrison | Found Quantum Capacitor 29323 | -6/Garrison | Build established: Bothacker-Mutant 29357 | -6/Garrison | Entered Factory 29357 | -5/Factory | Accompanied by 3 allies 29357 | -5/Factory | Evolved 2 slots: Utility x2 29686 | -5/Factory | Discovered new exit (range 3) 29739 | -5/Factory | Build established: Bothacker-Tank 29875 | -5/Factory | Found Prototype Launcher 29875 | -5/Factory | Identified Tesla Bomb Launcher 29950 | -5/Factory | Garrison activated, responded to threat 29995 | -5/Factory | Lost 3 allies 30257 | -5/Factory | First assault squad dispatched 30301 | -5/Factory | Repaired Quantum Capacitor? 30405 | -5/Factory | Discovered new exit (range 16) 30745 | -5/Factory | Fabricated Centrium Heavy Armor Plating? 30883 | -5/Factory | Entered Extension 31183 | -5/Extension | First assault squad dispatched 31340 | -5/Extension | Rescued A7 31750 | -5/Extension | Lost 3 allies 31849 | -5/Extension | Spotted B-75 Beast 31860 | -5/Extension | Destroyed B-75 Beast 31863 | -5/Extension | Spotted B-75 Beast 31882 | -5/Extension | Destroyed B-75 Beast 32054 | -5/Extension | Rescued a captive Derelict 32077 | -5/Extension | Local machine network offline 32327 | -5/Extension | Build established: Bothacker-Mutant 32371 | -5/Extension | Rescued a captive Derelict 32371 | -5/Extension | Rescued a captive Derelict 32461 | -5/Extension | Rescued a captive Derelict 32463 | -5/Extension | Rescued a captive Derelict 32518 | -5/Extension | Discovered new exit (range 10) 32521 | -5/Extension | Discovered new exit (range 6) 32550 | -5/Extension | Entered Cetus 32550 | -5/Cetus | Accompanied by 7 allies (A7) 32555 | -5/Cetus | Acquired a Cetus Manufacturing Module code from A7 32589 | -5/Cetus | Spotted Cetus Guard 32589 | -5/Cetus | Spotted Cetus Guard 32591 | -5/Cetus | Spotted Cetus Guard 32591 | -5/Cetus | Spotted Cetus Guard 32599 | -5/Cetus | Destroyed Cetus Guard 32601 | -5/Cetus | Allies destroyed Cetus Guard 32604 | -5/Cetus | Destroyed Cetus Guard 32606 | -5/Cetus | Allies destroyed Cetus Guard 32649 | -5/Cetus | System corruption reached 10% 32730 | -5/Cetus | Started Cetus Manufacturing Module 32755 | -5/Cetus | Manufactured an Enhanced Grunt 32780 | -5/Cetus | Manufactured an Enhanced Grunt 32805 | -5/Cetus | Manufactured an Enhanced Grunt 32830 | -5/Cetus | Manufactured an Enhanced Grunt 32853 | -5/Cetus | Escorted A7 to Cetus Mainframe 32855 | -5/Cetus | Manufactured an Enhanced Grunt 32879 | -5/Cetus | Discovered new exit (range 15) 32931 | -5/Cetus | Spotted Cetus Guard 32931 | -5/Cetus | Spotted Cetus Guard 32934 | -5/Cetus | Spotted Cetus Guard 32934 | -5/Cetus | Spotted Cetus Guard 32936 | -5/Cetus | Allies destroyed Cetus Guard 32940 | -5/Cetus | Destroyed Cetus Guard 32940 | -5/Cetus | Allies destroyed Cetus Guard 32941 | -5/Cetus | Destroyed Cetus Guard 32953 | -5/Cetus | Discovered new exit (range 15) 32956 | -5/Cetus | Build established: Hauler-Mutant 32968 | -5/Cetus | Met Revision 17 33081 | -5/Cetus | Entered Archives 33081 | -5/Archives | Accompanied by 9 allies (A7) 33086 | -5/Archives | Received a hacking code to weaken MAIN.C 33270 | -5/Archives | Unable to access archive contents 33324 | -5/Archives | Discovered new exit (range 16) 33396 | -5/Archives | Discovered new exit (range 16) 33650 | -5/Archives | Discovered new exit (range 13) 34675 | -5/Archives | Entered Hub_04(d) 34675 | -5/Hub_04(d) | Accompanied by 7 allies 34747 | -5/Hub_04(d) | Discovered new exit (range 23) 34751 | -5/Hub_04(d) | Identified exit to Factory 34951 | -5/Hub_04(d) | Build established: Hauler-Tank 34995 | -5/Hub_04(d) | Network Hub disabled 35021 | -5/Hub_04(d) | Entered Factory 35021 | -4/Factory | Accompanied by 6 allies 35021 | -4/Factory | Evolved 2 slots: Propulsion x2 35206 | -4/Factory | Lost 3 allies 35334 | -4/Factory | Lost 3 allies 35704 | -4/Factory | Identified exit to Upper Caves 35704 | -4/Factory | Identified exit to Armory 36097 | -4/Factory | Destroyed 7 combat bots 36115 | -4/Factory | Entered Armory 36411 | -4/Armory | Lost 4 allies 36444 | -4/Armory | Destroyed 7 combat bots 36539 | -4/Armory | Found Prototype Launcher 36539 | -4/Armory | Identified Com. Tesla Bomb Launcher 36545 | -4/Armory | Found Com. Tesla Bomb Launcher 36715 | -4/Armory | Discovered new exit (range 20) 36729 | -4/Armory | Assimilated H-71 Marshal with FLK Orb 36732 | -4/Armory | Lost 3 parts (1p1n1u) 36748 | -4/Armory | Destroyed 9 combat bots 36753 | -4/Armory | Build established: Scavenger-Tank 37098 | -4/Armory | Fabricated Centrium Heavy Armor Plating (x1) 37115 | -4/Armory | First assault squad dispatched 37409 | -4/Armory | Found Prototype Launcher 37409 | -4/Armory | Identified Mni. Smartbomb Launcher 37471 | -4/Armory | Discovered new exit (range 4) 37669 | -4/Armory | System corruption reached 10% 37726 | -4/Armory | Discovered new exit (range 4) 37806 | -4/Armory | Found Prototype Processor 37806 | -4/Armory | Identified Exp. Terrain Scan Processor 38007 | -4/Armory | Entered Lab 38007 | -4/Lab | Discovered new exit (range 9) 38036 | -4/Lab | Unable to decrypt terminal 38038 | -4/Lab | Detected for breach 38039 | -4/Lab | Gained access to the hidden lab's interior 38044 | -4/Lab | Confronted by A5 38067 | -4/Lab | Disabled Active System Cloaker 38070 | -4/Lab | Destroyed A5 38094 | -4/Lab | MAIN.C forces arrive to investigate 38121 | -4/Lab | Found Prototype Protection 38121 | -4/Lab | Identified Med. Regenerative Plating 38161 | -4/Lab | Found Alien Artifact 38161 | -4/Lab | Identified Integrated Dissipator 38161 | -4/Lab | Installed Integrated Dissipator, increased core heat dissipation (+20) 38172 | -4/Lab | Found Alien Artifact 38172 | -4/Lab | Identified Core Regenerator 38172 | -4/Lab | Used Core Regenerator, restored core integrity (+197) 38210 | -4/Lab | Found Prototype Protection 38210 | -4/Lab | Identified Exp. Powered Armor 38219 | -4/Lab | Found Prototype Energy Gun 38219 | -4/Lab | Identified Hyp. EM Gauss Rifle 38225 | -4/Lab | Found Prototype Energy Cannon 38225 | -4/Lab | Identified Potential Cannon 38277 | -4/Lab | Found Prototype Special Weapon 38277 | -4/Lab | Identified Gui. Remote Datajack 38317 | -4/Lab | Found Prototype Hackware 38353 | -4/Lab | Found Alien Artifact 38385 | -4/Lab | Found Alien Artifact 38418 | -4/Lab | Entered Research 38418 | -3/Research | Evolved 2 slots: Power x1, Utility x1 38444 | -3/Research | Discovered new exit (range 7) 38580 | -3/Research | Build established: Hauler-Mutant 38613 | -3/Research | Spotted B-86 Titan 38618 | -3/Research | Revision forces began assault on 0b10 38655 | -3/Research | Met up with Revision 17++ 38817 | -3/Research | Discovered new exit (range 14) 39037 | -3/Research | Intercept squad dispatched 39043 | -3/Research | Spotted Tracker 39044 | -3/Research | Spotted Tracker 39048 | -3/Research | Destroyed Tracker 39118 | -3/Research | Research terminal network offline 39242 | -3/Research | Build established: Hauler-Gunner 39827 | -3/Research | Intercept squad dispatched 39885 | -3/Research | Spotted Tracker 39941 | -3/Research | Spotted Combat Programmer 39948 | -3/Research | Destroyed Combat Programmer 39960 | -3/Research | Identified exit to Research 39985 | -3/Research | Spotted Striker 39997 | -3/Research | Destroyed Striker 40143 | -3/Research | Build established: Hauler-Tank 40264 | -3/Research | Entered Testing 40264 | -3/Testing | Accompanied by 1 ally 40962 | -3/Testing | Found Prototype Launcher 40970 | -3/Testing | Discovered exit to Research (range 18) 41024 | -3/Testing | Spotted PG-XCLLAL3FA1 41037 | -3/Testing | Destroyed PG-XCLLAL3FA1 41081 | -3/Testing | System corruption reached 10% 41081 | -3/Testing | Entered Research 41081 | -2/Research | Evolved 2 slots: Utility x2 41193 | -2/Research | Identified Quantum Router 41269 | -2/Research | Spotted B-90 Cyclops 41669 | -2/Research | System corruption reached 10% 41706 | -2/Research | Found Quantum Capacitor 41894 | -2/Research | Discovered new exit (range 42) 41938 | -2/Research | Discovered new exit (range 7) 41957 | -2/Research | Identified exit to Access 42013 | -2/Research | Intercept squad dispatched 42039 | -2/Research | Spotted Tracker 42076 | -2/Research | Spotted Tracker 42080 | -2/Research | Lost 3 allies 42081 | -2/Research | First assault squad dispatched 42124 | -2/Research | Destroyed Tracker 42129 | -2/Research | Identified Transdimensional Reconstructor 42129 | -2/Research | Warped through subspace 42131 | -2/Research | Spotted Combat Programmer 42510 | -2/Research | Destroyed Combat Programmer 42637 | -2/Research | Discovered new exit (range 9) 42657 | -2/Research | Identified Core Reset Matrix 42657 | -2/Research | Used Core Reset Matrix 42707 | -2/Research | Entered Quarantine 42708 | -2/Quarantine | Detected hypermatrix surge 42708 | -2/Quarantine | Sensed 7 artifacts in vicinity 42841 | -2/Quarantine | Cryocooling Duct disabled 42852 | -2/Quarantine | Cryocooling Duct disabled 42856 | -2/Quarantine | Ambient heat levels rising (+20) 42856 | -2/Quarantine | Non-combat units ordered to evacuate 42867 | -2/Quarantine | Ambient heat levels rising (+20) 42867 | -2/Quarantine | Combat units ordered to evacuate 42884 | -2/Quarantine | Cryocooling Duct disabled 42899 | -2/Quarantine | Ambient heat levels rising (+20) 42967 | -2/Quarantine | Quarantine Guard activated 43004 | -2/Quarantine | Found Subatomic Replicator 43050 | -2/Quarantine | Spotted Quarantine Guard 43070 | -2/Quarantine | Destroyed Quarantine Guard 43174 | -2/Quarantine | Spotted Quarantine Guard 43188 | -2/Quarantine | Destroyed Quarantine Guard 43191 | -2/Quarantine | Spotted Quarantine Guard 43196 | -2/Quarantine | Destroyed Quarantine Guard 43204 | -2/Quarantine | Spotted Quarantine Guard 43210 | -2/Quarantine | Destroyed Quarantine Guard 43253 | -2/Quarantine | Spotted Quarantine Guard 43269 | -2/Quarantine | Destroyed Quarantine Guard 43399 | -2/Quarantine | Spotted Quarantine Guard 43440 | -2/Quarantine | Destroyed Quarantine Guard 43472 | -2/Quarantine | Found Phase Armor 43525 | -2/Quarantine | Found Core Stripper 43627 | -2/Quarantine | Found Quantum Capacitor 43646 | -2/Quarantine | Intercept squad dispatched 43655 | -2/Quarantine | Spotted Tracker 43656 | -2/Quarantine | Spotted Tracker 43664 | -2/Quarantine | Destroyed Tracker 43666 | -2/Quarantine | Destroyed Tracker 43675 | -2/Quarantine | Spotted Combat Programmer 43675 | -2/Quarantine | Spotted Combat Programmer 43685 | -2/Quarantine | Destroyed Combat Programmer 43702 | -2/Quarantine | Destroyed Combat Programmer 43775 | -2/Quarantine | Spotted Fortress 43811 | -2/Quarantine | Destroyed Fortress 43885 | -2/Quarantine | Found Prototype Device 43885 | -2/Quarantine | Identified Exp. Force Field 43903 | -2/Quarantine | Found Prototype Reactor 43903 | -2/Quarantine | Identified Vortex Chain Reactor 44070 | -2/Quarantine | Discovered new exit (range 6) 44070 | -2/Quarantine | Spotted Quarantine Guard 44076 | -2/Quarantine | Destroyed Quarantine Guard 44181 | -2/Quarantine | Build established: Scavenger-Tank 44314 | -2/Quarantine | Entered Section 7 44315 | -2/Section 7 | Sensed 18 artifacts in vicinity 44448 | -2/Section 7 | Destroyed 9 combat bots 44514 | -2/Section 7 | Found Integrated Mediator 44514 | -2/Section 7 | Installed Integrated Mediator, increased core attachment efficiency 44640 | -2/Section 7 | Spotted S7 Guard 44702 | -2/Section 7 | Destroyed S7 Guard 44717 | -2/Section 7 | Found Prototype Protection 44717 | -2/Section 7 | Identified Hvy. Regenerative Plating 44757 | -2/Section 7 | Found Integrated Thermoelectric Network 44757 | -2/Section 7 | Installed Integrated Thermoelectric Network, gained heat-energy exchange potential 44961 | -2/Section 7 | Spotted S7 Guard 44974 | -2/Section 7 | Destroyed S7 Guard 44984 | -2/Section 7 | Found Core Membrane 44984 | -2/Section 7 | Installed Core Membrane, gained immunity to corruption 44997 | -2/Section 7 | Found Corrupted Hvy. Regenerative Plating 45064 | -2/Section 7 | First assault squad dispatched 45067 | -2/Section 7 | Found Integrity Redistributor 45101 | -2/Section 7 | Scanned by Researcher 45120 | -2/Section 7 | Spotted Executioner 45122 | -2/Section 7 | Spotted Executioner 45129 | -2/Section 7 | Destroyed Executioner 45130 | -2/Section 7 | Destroyed Executioner 45201 | -2/Section 7 | Intercept squad dispatched 45212 | -2/Section 7 | Found Transdimensional Reconstructor 45217 | -2/Section 7 | Found Transdimensional Reconstructor 45221 | -2/Section 7 | Found Hpw. Transdimensional Reconstructor 45228 | -2/Section 7 | Spotted Tracker 45229 | -2/Section 7 | Spotted Tracker 45235 | -2/Section 7 | Destroyed Tracker 45236 | -2/Section 7 | Destroyed Tracker 45239 | -2/Section 7 | Build established: Scavenger-Mutant 45280 | -2/Section 7 | Destroyed 13 combat bots 45293 | -2/Section 7 | Spotted Combat Programmer 45293 | -2/Section 7 | Spotted Combat Programmer 45298 | -2/Section 7 | Destroyed Combat Programmer 45300 | -2/Section 7 | Destroyed Combat Programmer 45373 | -2/Section 7 | Spotted B-99 Colossus 45377 | -2/Section 7 | Destroyed B-99 Colossus 45461 | -2/Section 7 | Found Core Expander 45461 | -2/Section 7 | Installed Core Expander, added new Utility slot 45545 | -2/Section 7 | Destroyed 8 combat bots 45547 | -2/Section 7 | Found LRC Insulator 45547 | -2/Section 7 | Installed LRC Insulator, gained EM resistance (25) 45633 | -2/Section 7 | Found Integrity Redistributor 45731 | -2/Section 7 | High security lockdown imminent 45770 | -2/Section 7 | Destroyed 12 combat bots 45811 | -2/Section 7 | High security lockdown engaged 45980 | -2/Section 7 | Destroyed 19 combat bots 46075 | -2/Section 7 | Destroyed Investigator 46122 | -2/Section 7 | Destroyed 16 combat bots 46154 | -2/Section 7 | Build established: Alien-Tank 46270 | -2/Section 7 | Spotted Striker 46272 | -2/Section 7 | Destroyed Striker 46275 | -2/Section 7 | Destroyed Executioner 46285 | -2/Section 7 | Sterilization system engaged 46285 | -2/Section 7 | Non-combat units ordered to evacuate 46301 | -2/Section 7 | Destroyed 27 combat bots 46385 | -2/Section 7 | Combat units ordered to evacuate 46443 | -2/Section 7 | Destroyed Executioner 46462 | -2/Section 7 | Spotted Striker 46464 | -2/Section 7 | Spotted Executioner 46465 | -2/Section 7 | Destroyed Striker 46466 | -2/Section 7 | Destroyed Executioner 46467 | -2/Section 7 | Destroyed Executioner 46472 | -2/Section 7 | Destroyed Striker 46498 | -2/Section 7 | Destroyed 32 combat bots 46585 | -2/Section 7 | Ambient heat levels rising (+10) 46732 | -2/Section 7 | Used Integrity Redistributor, redistributed integrity from core (-399) 46735 | -2/Section 7 | Ambient heat levels rising (+10) 46885 | -2/Section 7 | Ambient heat levels rising (+10) 46938 | -2/Section 7 | Spotted Executioner 46947 | -2/Section 7 | Destroyed Executioner 46947 | -2/Section 7 | Spotted Executioner 46953 | -2/Section 7 | Destroyed Executioner 46978 | -2/Section 7 | Found Corrupted Prototype Device 46985 | -2/Section 7 | Identified Adv. Kinecellerator 47026 | -2/Section 7 | Build established: Scavenger-Skirmisher 47035 | -2/Section 7 | Ambient heat levels rising (+10) 47185 | -2/Section 7 | Ambient heat levels rising (+10) 47335 | -2/Section 7 | Ambient heat levels rising (+10) 47485 | -2/Section 7 | Ambient heat levels rising (+10) 47635 | -2/Section 7 | Ambient heat levels rising (+10) 47665 | -2/Section 7 | Spotted B-90 Cyclops 47785 | -2/Section 7 | Ambient heat levels rising (+10) 47885 | -2/Section 7 | Discovered exit to Access (range 9) 47935 | -2/Section 7 | Ambient heat levels rising (+10) 48085 | -2/Section 7 | Ambient heat levels rising (+10) 48235 | -2/Section 7 | Ambient heat levels rising (+10) 48258 | -2/Section 7 | Entered Access 48258 | -1/Access | Evolved 2 slots: Power x1, Utility x1 48552 | -1/Access | First assault squad dispatched 48643 | -1/Access | High security lockdown imminent 48660 | -1/Access | Build established: Scavenger-Mutant 48664 | -1/Access | Destroyed 7 combat bots 48723 | -1/Access | High security lockdown engaged 48937 | -1/Access | Destroyed 18 combat bots 49000 | -1/Access | Spotted Executioner 49000 | -1/Access | Spotted Investigator 49001 | -1/Access | Destroyed Executioner 49002 | -1/Access | Destroyed Executioner 49002 | -1/Access | Destroyed Investigator 49028 | -1/Access | Destroyed 13 combat bots 49040 | -1/Access | Spotted Striker 49040 | -1/Access | Spotted Executioner 49040 | -1/Access | Destroyed Striker 49042 | -1/Access | Destroyed Striker 49044 | -1/Access | Destroyed Executioner 49175 | -1/Access | Destroyed Executioner 49243 | -1/Access | Destroyed Striker 49280 | -1/Access | Destroyed Executioner 49294 | -1/Access | Destroyed Executioner 49294 | -1/Access | Destroyed Striker 49295 | -1/Access | Destroyed Executioner 49300 | -1/Access | Destroyed Striker 49321 | -1/Access | Destroyed 15 combat bots 49321 | -1/Access | Spotted Executioner 49321 | -1/Access | Destroyed Striker 49322 | -1/Access | Destroyed Executioner 49322 | -1/Access | Destroyed Executioner 49322 | -1/Access | Destroyed Investigator 49322 | -1/Access | Destroyed Striker 49350 | -1/Access | Destroyed 15 combat bots 49491 | -1/Access | Destroyed Executioner 49518 | -1/Access | Destroyed 9 combat bots 49527 | -1/Access | Spotted Striker 49528 | -1/Access | Destroyed Executioner 49530 | -1/Access | Destroyed Striker 49574 | -1/Access | Destroyed Striker 49575 | -1/Access | Destroyed Executioner 49575 | -1/Access | Destroyed Executioner 49597 | -1/Access | Destroyed 8 combat bots 49665 | -1/Access | Sterilization system engaged 49703 | -1/Access | Destroyed 13 combat bots 49758 | -1/Access | Destroyed Executioner 49759 | -1/Access | Destroyed Executioner 49965 | -1/Access | Ambient heat levels rising (+10) 50115 | -1/Access | Ambient heat levels rising (+10) 50265 | -1/Access | Ambient heat levels rising (+10) 50415 | -1/Access | Ambient heat levels rising (+10) 50565 | -1/Access | Ambient heat levels rising (+10) 50715 | -1/Access | Ambient heat levels rising (+10) 50865 | -1/Access | Ambient heat levels rising (+10) 51015 | -1/Access | Ambient heat levels rising (+10) 51165 | -1/Access | Ambient heat levels rising (+10) 51315 | -1/Access | Ambient heat levels rising (+10) 51465 | -1/Access | Ambient heat levels rising (+10) 51467 | -1/Access | Found Unknown Device 51467 | -1/Access | Identified Launcher Loader 51615 | -1/Access | Ambient heat levels rising (+10) 51765 | -1/Access | Ambient heat levels rising (+10) 51863 | -1/Access | Build established: Scavenger-Tank 51915 | -1/Access | Ambient heat levels rising (+10) 52065 | -1/Access | Ambient heat levels rising (+10) 52215 | -1/Access | Ambient heat levels rising (+10) 52254 | -1/Access | Found Prototype Processor 52365 | -1/Access | Ambient heat levels rising (+10) 52515 | -1/Access | Ambient heat levels rising (+10) 52665 | -1/Access | Ambient heat levels rising (+10) 52815 | -1/Access | Ambient heat levels rising (+10) 52965 | -1/Access | Ambient heat levels rising (+10) 53115 | -1/Access | Ambient heat levels rising (+10) 53172 | -1/Access | Discovered new exit (range 18) 53265 | -1/Access | Ambient heat levels rising (+10) 53415 | -1/Access | Ambient heat levels rising (+10) 53565 | -1/Access | Ambient heat levels rising (+10) 53715 | -1/Access | Ambient heat levels rising (+10) 53865 | -1/Access | Ambient heat levels rising (+10) 54015 | -1/Access | Ambient heat levels rising (+10) 54165 | -1/Access | Ambient heat levels rising (+10) 54315 | -1/Access | Ambient heat levels rising (+10) 54465 | -1/Access | Ambient heat levels rising (+10) 54615 | -1/Access | Ambient heat levels rising (+10) 54765 | -1/Access | Ambient heat levels rising (+10) 54885 | -1/Access | Identified Z-bomb Delivery System 54890 | -1/Access | Identified Exp. Core Analyzer 54915 | -1/Access | Ambient heat levels rising (+10) 55065 | -1/Access | Ambient heat levels rising (+10) 55095 | -1/Access | Discovered new exit (range 18) 55215 | -1/Access | Ambient heat levels rising (+10) 55216 | -1/Access | Energy Cycler disabled 55365 | -1/Access | Ambient heat levels rising (+10) 55515 | -1/Access | Ambient heat levels rising (+10) 55665 | -1/Access | Ambient heat levels rising (+10) 55815 | -1/Access | Ambient heat levels rising (+10) 55965 | -1/Access | Ambient heat levels rising (+10) 56094 | -1/Access | Entered Command 56213 | -1/Command | High security lockdown imminent 56293 | -1/Command | High security lockdown engaged 56378 | -1/Command | Spotted Striker 56379 | -1/Command | Destroyed Striker 56403 | -1/Command | Destroyed 16 combat bots 56472 | -1/Command | Destroyed Striker 56473 | -1/Command | Destroyed Investigator 56474 | -1/Command | Destroyed Executioner 56508 | -1/Command | Destroyed 18 combat bots 56602 | -1/Command | Spotted Striker 56603 | -1/Command | Destroyed Striker 56603 | -1/Command | Destroyed Striker 56604 | -1/Command | Destroyed Striker 56604 | -1/Command | Destroyed Executioner 56607 | -1/Command | Destroyed Executioner 56609 | -1/Command | Destroyed Executioner 56611 | -1/Command | Build established: Scavenger-Mutant 56624 | -1/Command | Spotted Striker 56626 | -1/Command | Destroyed Striker 56648 | -1/Command | Destroyed 19 combat bots 56811 | -1/Command | Destroyed Executioner 56848 | -1/Command | Destroyed 19 combat bots 56865 | -1/Command | Destroyed Striker 56886 | -1/Command | Destroyed 14 combat bots 57101 | -1/Command | Spotted Executioner 57103 | -1/Command | Destroyed Executioner 57105 | -1/Command | Destroyed Striker 57105 | -1/Command | Destroyed Executioner 57109 | -1/Command | Destroyed Executioner 57126 | -1/Command | Destroyed Executioner 57126 | -1/Command | Destroyed Executioner 57128 | -1/Command | Destroyed Striker 57134 | -1/Command | Destroyed Executioner 57135 | -1/Command | Destroyed Striker 57173 | -1/Command | Destroyed 41 combat bots 57398 | -1/Command | Destroyed Executioner 57399 | -1/Command | Destroyed Striker 57421 | -1/Command | Destroyed 12 combat bots 60174 | -1/Command | Spotted M Guard 60174 | -1/Command | Spotted M Guard 60175 | -1/Command | Spotted Combat Programmer 60177 | -1/Command | Destroyed M Guard 60178 | -1/Command | Destroyed Combat Programmer 60190 | -1/Command | Destroyed M Guard 60197 | -1/Command | Destroyed Combat Programmer 60197 | -1/Command | All MAIN.C guards destroyed 60218 | -1/Command | Found Corrupted Prototype Device 60218 | -1/Command | Identified AEGIS Remote Shield 60313 | -1/Command | Found Corrupted Prototype Reactor 60313 | -1/Command | Identified Zero-point Reactor 60333 | -1/Command | Found Zero-point Reactor 60492 | -1/Command | Met MAIN.C 60498 | -1/Command | 0b10 Conduit disabled 60555 | -1/Command | Destroyed MAIN.C Shell 60558 | -1/Command | MAIN.C activated Command garrisons 60613 | -1/Command | Destroyed MAIN.C 60636 | -1/Command | Spotted B-99 Colossus 60642 | -1/Command | Destroyed B-99 Colossus 60655 | -1/Command | Discovered new exit (range 33) 60655 | -1/Command | Discovered new exit (range 105) 60655 | -1/Command | Extracted map data and part IDs from MAIN.C's data core 61269 | -1/Command | Build established: Generator-Mutant 62645 | -1/Command | Build established: Generator-Tank 62946 | -1/Command | Found Exp. Core Analyzer 62970 | -1/Command | Found Exp. Core Analyzer 63255 | -1/Command | Build established: Scavenger-Gunner 63641 | -1/Command | Found Exp. Targeting Computer 63661 | -1/Command | Used Subatomic Replicator to replicate Integrity Redistributor 64104 | -1/Command | Phase Generator disabled 64185 | -1/Command | Found Adv. Powered Armor 65008 | -1/Command | Found Vortex Chain Reactor 65011 | -1/Command | Found Zero-point Reactor 65165 | -1/Command | Warped through subspace to slip node 65165 | -1/Command | Discovered new exit (range 4) 65167 | -1/Command | Found Gamma Refractor 65171 | -1/Command | Entered Access_0 65172 | -1/Access_0 | Sensed 3 artifacts in vicinity 65172 | -1/Access_0 | Met Architect 65175 | -1/Access_0 | Destroyed A8 65181 | -1/Access_0 | Architect warped through subspace 65225 | -1/Access_0 | Architect warped through subspace 65257 | -1/Access_0 | Architect warped through subspace 65281 | -1/Access_0 | Found Exp. Powered Armor 65319 | -1/Access_0 | Build established: Generator-Gunner 65330 | -1/Access_0 | Architect warped through subspace 65357 | -1/Access_0 | Architect warped through subspace 65382 | -1/Access_0 | A6 warped into view 65384 | -1/Access_0 | Assimilated A6 with FLK Orb 65386 | -1/Access_0 | Murdered A6 65386 | -1/Access_0 | Destroyed A6 65390 | -1/Access_0 | Architect warped through subspace 65390 | -1/Access_0 | Subspace Access Node disabled 65485 | -1/Access_0 | Architect warped through subspace 65527 | -1/Access_0 | Architect warped through subspace 65572 | -1/Access_0 | Architect warped through subspace 65577 | -1/Access_0 | Found Zero-point Reactor 65630 | -1/Access_0 | Architect warped through subspace 65669 | -1/Access_0 | Architect warped through subspace 65710 | -1/Access_0 | Architect warped through subspace 65714 | -1/Access_0 | Subspace Access Node disabled 65758 | -1/Access_0 | Architect warped through subspace 65793 | -1/Access_0 | Assimilated A2 with FLK Orb 65814 | -1/Access_0 | Architect warped through subspace 65817 | -1/Access_0 | Used Integrity Redistributor, redistributed integrity from core (-419) 65818 | -1/Access_0 | Core integrity fell below 50% 65876 | -1/Access_0 | Architect warped through subspace 65898 | -1/Access_0 | Singularity Gate disabled 65931 | -1/Access_0 | Architect warped through subspace 65982 | -1/Access_0 | Architect warped through subspace 66034 | -1/Access_0 | Architect warped through subspace 66083 | -1/Access_0 | Architect warped through subspace 66120 | -1/Access_0 | Architect warped through subspace 66154 | -1/Access_0 | Architect warped through subspace 66183 | -1/Access_0 | Architect warped through subspace 66216 | -1/Access_0 | Architect warped through subspace 66238 | -1/Access_0 | Architect warped through subspace 66259 | -1/Access_0 | Architect warped through subspace 66283 | -1/Access_0 | Architect warped through subspace 66289 | -1/Access_0 | A4 warped into view 66291 | -1/Access_0 | Assimilated A4 with FLK Orb 66299 | -1/Access_0 | Murdered A4 66299 | -1/Access_0 | Destroyed A4 66324 | -1/Access_0 | Architect warped through subspace 66344 | -1/Access_0 | Architect warped through subspace 66357 | -1/Access_0 | Triggered Gamma Refractor 66357 | -1/Access_0 | Subspace Access Node disabled 66357 | -1/Access_0 | Subspace Access Node disabled 66369 | -1/Access_0 | Destroyed Architect 66380 | -1/Access_0 | Extracted unknown sensor trigger ID from Architect's data core 66896 | -1/Access_0 | Found Hpw. Transdimensional Reconstructor 67140 | -1/Access_0 | A3 warped into view 67142 | -1/Access_0 | Assimilated A3 with FLK Orb 67225 | -1/Access_0 | Found Integrated Mediator 67225 | -1/Access_0 | Installed Integrated Mediator, increased core attachment efficiency 67350 | -1/Access_0 | Found Prototype Device 67351 | -1/Access_0 | Identified Desublimator 67689 | -1/Access_0 | Build established: Generator-Mutant 67930 | -1/Access_0 | Found Sigix Corpse 68163 | -1/Access_0 | Found Singularity Reactor 68222 | -1/Access_0 | Build established: Generator-Gunner 68235 | -1/Access_0 | Found Prototype Device 68235 | -1/Access_0 | Identified ST Field Compressor 68500 | -1/Access_0 | Found Sigix Broadsword 70034 | -1/Access_0 | Warped through subspace to slip node 70034 | -1/Access_0 | Discovered new exit (range 8) 70114 | -1/Access_0 | Used Integrity Redistributor, redistributed integrity to core (+450) 70569 | -1/Access_0 | Crushed by falling debris 70650 | *** | Heading to fleet! Last Messages --------------- 70034_ Warped through subspace, drawn to slip node. 70034_ EXIT=FOUND 70055_ Dimensional Slip Node implodes. 70056_ The unstable cave ceiling collapses. 70112_ Dropped Potential Cannon. 70113_ The unstable cave ceiling collapses. 70114_ Integrity redistributed to core (+450). 70115_ Acquired Potential Cannon. 70119_ The unstable cave ceiling collapses. 70569_ Crushed by falling debris. 70569_ Exp. Optical Array destroyed. 70569_ Core Membrane filtered system corruption (1). 70624_ Stealth Drone released from Stealth Drone Bay. 70624_ The unstable cave ceiling collapses. 70625_ Stealth Drone released from Stealth Drone Bay. 70626_ The unstable cave ceiling collapses. 70626_ Stealth Drone crushed by falling debris. 70634_ The unstable cave ceiling collapses. 70635_ Stealth Drone crushed by falling debris. 70643_ The unstable cave ceiling collapses. Map ----- +----------------------------------------------------+ | | | | | | | | | | | | | | | | | | | | | | | | | | | | | | | | | ?????????????????????????????????????????????????? | | ?????????????????????????????????????????????????? | | ?????????????????????????????????????????????????? | | ?????????????????????????????????????????????????? | | ?????????????????????????????????????????????????? | | ?????????????????????????????????????????????????? | | ????????????????????????###??????????????????????? | | ???????????????????????## ##?????????????????????? | | ???????????????????????# #?????????????????????? | | ???????????????????????#p@ #?????????????????????? | | ?????????????????????###n #?????????????????????? | | ???????????????????### n ###???????????????????? | | ???????????????????## # #???????????????????? | | ??????????????????### # ####??????????????????? | | ?????????????????## # ##??????????????????? | | ????????????????## ## #??????????????????? | | ???????????????## ####??????????????????? | | ??????????????## #####??????????????????? | | ????????#????## # ### #??????????????????? | | ???????## #### # ## ##??????????????????? | | ??????## # # #???????????????????? | | ??????# # # ####???????????????????? | | ??????# # ###?????????????????????? | | ??????# # ###???????????????????????? | | ??????# "#?????????????????????????? | | ?????# #?????????????????????????? | | ?????# ##?????????????????????????? | | ????# #??????????????????????????? | | ???# # # ##??????????????????????????? | | ??# # #######???????????????????????????? | | ##??????????????????????????????????? | | ????????????????????????????????????? | | ?????????????????????????????????????? | | ?????????????????????????????????????? | +----------------------------------------------------+ Best States ------------- Heat Dissipation 145 Coolant Potential 120 Energy Generation 111 Energy Capacity 1840 Matter Stores 300 Matter Capacity 700 Sight Range 23 Terrain Scan Range 20 Terrain Scan Density 210 Jamming Range 14 Cloak Strength 4 Additional Mass Support 16 Armor Coverage 3200 Resistance: KI 30 Resistance: TH 30 Resistance: EM 25 Core Shielding 40 Utility Shielding 66 Weapon Shielding 90 Weapon Cycling 25 Evasion (%) 55 Targeting Accuracy 20 Launcher Accuracy 30 Core Analysis 8 Armor Integrity Analysis 40 Recoil Reduction 6 Particle Charging 30 Kinecelleration 50 Salvage Targeting 2 Offensive Hacking 10 Defensive Hacking 25 Relay Coupler Types 2 Relay Coupler Value 40 Authchip Count 1 Item Schematics ----------------- Prc. Phase Gun | -2/Section 7 | Archive Electron Diverter | -2/Section 7 | Archive Imp. Energy Mantle | -2/Section 7 | Archive Robot Schematics ------------------ None Fabricated ------------ Centrium Heavy Armor Plating | x1 | -5/Factory Centrium Heavy Armor Plating | x1 | -4/Armory | Authchip Alien Tech Used ----------------- Integrated Dissipator Core Regenerator Transdimensional Reconstructor Core Reset Matrix Phase Armor Integrated Mediator Core Stripper Integrated Thermoelectric Network Core Membrane Core Expander LRC Insulator Integrity Redistributor Subatomic Replicator Sigix Broadsword High-powered Transdimensional Reconstructor Achievements -------------- None Challenges ------------ None Game ------ Seed ExplosiveMeleeReconstructor Manual? 0 Play Time 16:45:51 Cumulative 1555.1 hours Start 2024.04.12 @ 00:18:21 End 2024.04.21 @ 17:16:25 Sessions 11 Manual Loads 0 Difficulty Rogue Special Mode None Game No. 425 Rogue 425 Adventurer 0 Explorer 0 Win Type 2 Total 92 Types 14/18/19/3/1/2/31/2/2 Lore% 95 Gallery% 97 Achievement% 89 Wizard Run 0 Options --------- Layout 0 ASCII 0 Keyboard 0 Movement Numpad Keybinds 0 Fullscreen 2 Font 24/Smallcaps Map View 76x50 Zoom Use 0% Tactical HUD 1 Map Filters NONE Filters NONE Steam 1 RUN: 892de7ee-b298-4ccb-abe4-4beba6c2e2c6